Organisation Name (A),Department (B),Service Cat Label (C ),Purpose of Spend (D),Expenditure CIPFA Sub Group (E),Supplier (F),Supplier Reference (G),Pay Date (H),Transaction Number (I),Net Amount (J),Grant to VCSE? (K),Charity Number (L),Card Transaction (M),Irrecoverable VAT (N)
Pendle Borough Council,Parks & Recreation Services,Transport Related Expense,Tprt : Repairs : General,3105,BALMERS GM LIMITED,A0000198,20/04/2023,PCO0333174,75.16,N,,N,N
Pendle Borough Council,Parks & Recreation Services,Supplies and Services,Expenditure : Materials,0002,BARNES JB LIMITED,A0000202,20/04/2023,PCO0333152,15.84,N,,N,N
Pendle Borough Council,Parks & Recreation Services,Premises Related Expense,Bldgs : R & M : Day To Day,2001,BARNES JB LIMITED,A0000202,27/04/2023,PCO0333306,42.26,N,,N,N
Pendle Borough Council,Parks & Recreation Services,Premises Related Expense,Grounds : R & M : Day to Day : Routine,2101,BARNES JB LIMITED,A0000202,27/04/2023,PCO0333305,144.01,N,,N,N
Pendle Borough Council,Parks & Recreation Services,Transport Related Expense,Tprt : Repairs : General,3105,BARNES JB LIMITED,A0000202,17/04/2023,PCO0333030,16.4,N,,N,N
Pendle Borough Council,Parks & Recreation Services,Transport Related Expense,Tprt : Repairs : General,3105,BARNES JB LIMITED,A0000202,17/04/2023,PCO0333028,124.8,N,,N,N
Pendle Borough Council,Operational Services,Supplies and Services,Sub-Contractors,4007,BARNES JB LIMITED,A0000202,27/04/2023,OPS0333320,41.95,N,,N,N
Pendle Borough Council,Operational Services,Supplies and Services,Sub-Contractors,4007,BURNLEY BOROUGH COUNCIL,A0000229,06/04/2023,OPS0332833,4425,N,,N,N
Pendle Borough Council,Engineering & Special Projects,Premises Related Expense,Grounds : R & M : Day to Day : Routine,2101,CB EXCAVATORS LTD,A0000396,27/04/2023,HED0333363,4574,N,,N,N
Pendle Borough Council,Engineering & Special Projects,Capital Costs,Ren Grant : 1996 Act,ch22,CB EXCAVATORS LTD,A0000396,20/04/2023,HED0333218,3745.43,N,,N,N
Pendle Borough Council,Engineering & Special Projects,Premises Related Expense,Bldgs : R & M : Day To Day,2001,GEORGE BOOCOCK DECORATORS LTD,A0000427,06/04/2023,HED0332893,430,N,,N,N
Pendle Borough Council,Engineering & Special Projects,Premises Related Expense,Grounds : R & M : Day to Day : Routine,2101,GEORGE BOOCOCK DECORATORS LTD,A0000427,06/04/2023,HED0332892,695,N,,N,N
Pendle Borough Council,Engineering & Special Projects,Supplies and Services,Other Expenses,4705,GEORGE BOOCOCK DECORATORS LTD,A0000427,06/04/2023,HED0332896,279,N,,N,N
Pendle Borough Council,Engineering & Special Projects,Supplies and Services,Other Expenses,4705,GEORGE BOOCOCK DECORATORS LTD,A0000427,06/04/2023,HED0332893,346,N,,N,N
Pendle Borough Council,Property Services,Capital Costs,Capital : Payments,CD14,BARROWFORD SAFE & LOCK SERV LT,A0000458,06/04/2023,EST0332898,29.9,N,,N,N
Pendle Borough Council,Engineering & Special Projects,Premises Related Expense,Bldgs : R & M : Abnormal,2002,MARTIN COLLINS JOINERY & GLAZING,A0000623,20/04/2023,HED0333106,72,N,,N,N
Pendle Borough Council,Engineering & Special Projects,Supplies and Services,Seminars etc All Costs,4601,CAVALIER TAXIS,A0000638,17/04/2023,HED0333010,23,N,,N,N
Pendle Borough Council,Property Services,Premises Related Expense,Bldgs : R & M : Day To Day,2001,J DRIVER LTD,A0000884,17/04/2023,EST0333041,155.69,N,,N,N
Pendle Borough Council,Property Services,Premises Related Expense,Bldgs : R & M : Day To Day,2001,J DRIVER LTD,A0000884,17/04/2023,EST0333041,436.24,N,,N,N
Pendle Borough Council,Property Services,Premises Related Expense,Bldgs : R & M : Day To Day,2001,J DRIVER LTD,A0000884,17/04/2023,EST0333041,972.56,N,,N,N
Pendle Borough Council,Property Services,Premises Related Expense,Bldgs : R & M : Day To Day,2001,J DRIVER LTD,A0000884,17/04/2023,EST0333041,294,N,,N,N
Pendle Borough Council,Property Services,Premises Related Expense,Bldgs : R & M : Day To Day,2001,J DRIVER LTD,A0000884,17/04/2023,EST0333041,121.74,N,,N,N
Pendle Borough Council,Property Services,Premises Related Expense,Bldgs : R & M : Day To Day,2001,J DRIVER LTD,A0000884,17/04/2023,EST0333041,276.21,N,,N,N
Pendle Borough Council,Parks & Recreation Services,Transport Related Expense,Tprt : Repairs : General,3105,ENGINEERING & FOUNDRY SUPPLIES,A0001002,17/04/2023,PCO0333034,238.64,N,,N,N
Pendle Borough Council,Parks & Recreation Services,Supplies and Services,Protective Clothing,4201,ENGINEERING & FOUNDRY SUPPLIES,A0001002,17/04/2023,PCO0333024,19.6,N,,N,N
Pendle Borough Council,Parks & Recreation Services,Supplies and Services,Protective Clothing,4201,ENGINEERING & FOUNDRY SUPPLIES,A0001002,27/04/2023,PCO0333311,25.54,N,,N,N
Pendle Borough Council,Operational Services,,Stock : Purchases,PJ01,ENGINEERING & FOUNDRY SUPPLIES,A0001002,27/04/2023,OPS0333238,80.4,N,,N,N
Pendle Borough Council,Operational Services,,Stock : Purchases,PJ01,ENGINEERING & FOUNDRY SUPPLIES,A0001002,20/04/2023,OPS0333183,119.5,N,,N,N
Pendle Borough Council,Operational Services,,Stock : Purchases,PJ01,ENGINEERING & FOUNDRY SUPPLIES,A0001002,20/04/2023,OPS0333184,126.72,N,,N,N
Pendle Borough Council,Operational Services,,Stock : Purchases,PJ01,ENGINEERING & FOUNDRY SUPPLIES,A0001002,20/04/2023,OPS0333184,316.03,N,,N,N
Pendle Borough Council,Operational Services,,Stock : Purchases,PJ01,ENGINEERING & FOUNDRY SUPPLIES,A0001002,20/04/2023,OPS0333184,374.4,N,,N,N
Pendle Borough Council,Financial Services,,Precept Parish & T Council,0303,EARBY TOWN COUNCIL,A0001004,27/04/2023,AAS0333410,34337.57,N,,N,N
Pendle Borough Council,Human Resources,Supplies and Services,Consultants Fees,4401,FORBES SOLICITORS,A0001117,20/04/2023,PER0333223,3052.5,N,,N,N
Pendle Borough Council,Engineering & Special Projects,,Fees Income : Non-VATable,9302,FORBES SOLICITORS,A0001117,27/04/2023,HED0333352,1285,N,,N,N
Pendle Borough Council,Operational Services,Supplies and Services,Sub-Contractors,4007,JEWSON LIMITED,A0001323,27/04/2023,OPS0333248,59.68,N,,N,N
Pendle Borough Council,Financial Services,Supplies and Services,Subscriptions & Donations,4706,CIPFA BUSINESS LIMITED,A0001556,06/04/2023,AAS0332797,1935,N,,N,N
Pendle Borough Council,Financial Services,Supplies and Services,Subscriptions & Donations,4706,CIPFA BUSINESS LIMITED,A0001556,06/04/2023,AAS0332806,3295,N,,N,N
Pendle Borough Council,Financial Services,Supplies and Services,Subscriptions & Donations,4706,CIPFA BUSINESS LIMITED,A0001556,06/04/2023,AAS0332796,4055,N,,N,N
Pendle Borough Council,Financial Services,Supplies and Services,Subscriptions & Donations,4706,CIPFA BUSINESS LIMITED,A0001556,06/04/2023,AAS0332798,5295,N,,N,N
Pendle Borough Council,Parks & Recreation Services,Premises Related Expense,Bldgs : R & M : Day To Day,2001,LANLEE SUPPLIES LIMITED,A0001672,17/04/2023,PCO0333033,109.34,N,,N,N
Pendle Borough Council,Parks & Recreation Services,Premises Related Expense,Grounds : R & M : Day to Day : Routine,2101,LANLEE SUPPLIES LIMITED,A0001672,20/04/2023,PCO0333177,528.58,N,,N,N
Pendle Borough Council,Parks & Recreation Services,Premises Related Expense,Grounds : R & M : Day to Day : Routine,2101,LANLEE SUPPLIES LIMITED,A0001672,27/04/2023,PCO0333304,35.26,N,,N,N
Pendle Borough Council,Parks & Recreation Services,Transport Related Expense,Tprt : Repairs : General,3105,DICK LEIGH,A0001675,20/04/2023,PCO0333161,12,N,,N,N
Pendle Borough Council,Parks & Recreation Services,Transport Related Expense,Tprt : Repairs : General,3105,DICK LEIGH,A0001675,20/04/2023,PCO0333160,50.29,N,,N,N
Pendle Borough Council,Parks & Recreation Services,Transport Related Expense,Tprt : Repairs : General,3105,DICK LEIGH,A0001675,20/04/2023,PCO0333172,89.37,N,,N,N
Pendle Borough Council,Parks & Recreation Services,Transport Related Expense,Tprt : Repairs : General,3105,DICK LEIGH,A0001675,17/04/2023,PCO0333025,168.27,N,,N,N
Pendle Borough Council,Parks & Recreation Services,Transport Related Expense,Tprt : Repairs : General,3105,DICK LEIGH,A0001675,17/04/2023,PCO0333026,439.39,N,,N,N
Pendle Borough Council,Parks & Recreation Services,Transport Related Expense,Tprt : Repairs : General,3105,DICK LEIGH,A0001675,20/04/2023,PCO0333172,87.5,N,,N,N
Pendle Borough Council,Parks & Recreation Services,Transport Related Expense,Tprt : Repairs : General,3105,DICK LEIGH,A0001675,27/04/2023,PCO0333309,43.03,N,,N,N
Pendle Borough Council,Parks & Recreation Services,Transport Related Expense,Tprt : Repairs : General,3105,DICK LEIGH,A0001675,27/04/2023,PCO0333309,43.03,N,,N,N
Pendle Borough Council,Engineering & Special Projects,Supplies and Services,Search Fees,4404,LANCASHIRE COUNTY COUNCIL,A0001690,17/04/2023,HED0333006,491.04,N,,N,N
Pendle Borough Council,Engineering & Special Projects,Capital Costs,Ren Grant : 1996 Act,CH22,LANCASHIRE COUNTY COUNCIL,A0001690,17/04/2023,HED0333005,6850,N,,N,N
Pendle Borough Council,Operational Services,Premises Related Expense,Grounds : R & M : Day to Day : Routine,2101,JOHN MACADAM & SON (RESCUE) LTD,A0001846,06/04/2023,OPS0332886,120,N,,N,N
Pendle Borough Council,Operational Services,Premises Related Expense,Grounds : R & M : Day to Day : Routine,2101,JOHN MACADAM & SON (RESCUE) LTD,A0001846,06/04/2023,OPS0332874,370,N,,N,N
Pendle Borough Council,Operational Services,Transport Related Expense,Tprt : Repairs : General,3105,JOHN MACADAM & SON (RESCUE) LTD,A0001846,06/04/2023,OPS0332887,540,N,,N,N
Pendle Borough Council,Parks & Recreation Services,Premises Related Expense,Grounds : R & M : Day to Day : Routine,2101,WATER PLUS LIMITED,A0001986,20/04/2023,PCO0333159,275.33,N,,N,N
Pendle Borough Council,Property Services,Premises Related Expense,Water & Sewerage,2501,WATER PLUS LIMITED,A0001986,17/04/2023,EST0333046,147.53,N,,N,N
Pendle Borough Council,Property Services,Premises Related Expense,Water & Sewerage,2501,WATER PLUS LIMITED,A0001986,06/04/2023,EST0332924,35.4,N,,N,N
Pendle Borough Council,Property Services,Premises Related Expense,Water & Sewerage,2501,WATER PLUS LIMITED,A0001986,17/04/2023,EST0333044,38.28,N,,N,N
Pendle Borough Council,Property Services,Premises Related Expense,Water & Sewerage,2501,WATER PLUS LIMITED,A0001986,06/04/2023,EST0332920,44.35,N,,N,N
Pendle Borough Council,Property Services,Premises Related Expense,Water & Sewerage,2501,WATER PLUS LIMITED,A0001986,20/04/2023,EST0333245,161.66,N,,N,N
Pendle Borough Council,Property Services,Premises Related Expense,Water & Sewerage,2501,WATER PLUS LIMITED,A0001986,17/04/2023,EST0333052,20.3,N,,N,N
Pendle Borough Council,Property Services,Premises Related Expense,Water & Sewerage,2501,WATER PLUS LIMITED,A0001986,06/04/2023,EST0332923,94.83,N,,N,N
Pendle Borough Council,Property Services,Premises Related Expense,Water & Sewerage,2501,WATER PLUS LIMITED,A0001986,27/04/2023,EST0333393,120.21,N,,N,N
Pendle Borough Council,Property Services,Premises Related Expense,Water & Sewerage,2501,WATER PLUS LIMITED,A0001986,27/04/2023,EST0333396,22.81,N,,N,N
Pendle Borough Council,Property Services,Premises Related Expense,Water & Sewerage,2501,WATER PLUS LIMITED,A0001986,27/04/2023,EST4006715,-17.68,N,,N,N
Pendle Borough Council,Property Services,Premises Related Expense,Water & Sewerage,2501,WATER PLUS LIMITED,A0001986,17/04/2023,EST0333048,17.68,N,,N,N
Pendle Borough Council,Property Services,Premises Related Expense,Water & Sewerage,2501,WATER PLUS LIMITED,A0001986,17/04/2023,EST0333047,8.58,N,,N,N
Pendle Borough Council,Property Services,Premises Related Expense,Water & Sewerage,2501,WATER PLUS LIMITED,A0001986,17/04/2023,EST0333045,22.39,N,,N,N
Pendle Borough Council,Property Services,Premises Related Expense,Water & Sewerage,2501,WATER PLUS LIMITED,A0001986,06/04/2023,EST0332922,642.28,N,,N,N
Pendle Borough Council,Property Services,Premises Related Expense,Water & Sewerage,2501,WATER PLUS LIMITED,A0001986,27/04/2023,EST0333401,4.1,N,,N,N
Pendle Borough Council,Property Services,Premises Related Expense,Water & Sewerage,2501,WATER PLUS LIMITED,A0001986,20/04/2023,EST4006712,-642.28,N,,N,N
Pendle Borough Council,Property Services,Premises Related Expense,Water & Sewerage,2501,WATER PLUS LIMITED,A0001986,20/04/2023,EST0333243,570.16,N,,N,N
Pendle Borough Council,Engineering & Special Projects,Premises Related Expense,Water & Sewerage,2501,WATER PLUS LIMITED,A0001986,06/04/2023,HED0332840,1851.49,N,,N,N
Pendle Borough Council,Engineering & Special Projects,Premises Related Expense,Water & Sewerage,2501,WATER PLUS LIMITED,A0001986,06/04/2023,HED0332839,818.3,N,,N,N
Pendle Borough Council,Engineering & Special Projects,Premises Related Expense,Water & Sewerage,2501,WATER PLUS LIMITED,A0001986,17/04/2023,HED0333018,367.18,N,,N,N
Pendle Borough Council,Property Services,Premises Related Expense,Water & Sewerage,2501,WATER PLUS LIMITED,A0001986,27/04/2023,EST0333392,199.14,N,,N,N
Pendle Borough Council,Property Services,Premises Related Expense,Water & Sewerage,2501,WATER PLUS LIMITED,A0001986,27/04/2023,EST0333395,17.35,N,,N,N
Pendle Borough Council,Property Services,Premises Related Expense,Water & Sewerage,2501,WATER PLUS LIMITED,A0001986,27/04/2023,EST0333394,33.69,N,,N,N
Pendle Borough Council,Property Services,Premises Related Expense,Water & Sewerage,2501,WATER PLUS LIMITED,A0001986,17/04/2023,EST0333054,58.31,N,,N,N
Pendle Borough Council,Property Services,Premises Related Expense,Water & Sewerage,2501,WATER PLUS LIMITED,A0001986,20/04/2023,EST0333244,616.91,N,,N,N
Pendle Borough Council,Property Services,Premises Related Expense,Water & Sewerage,2501,WATER PLUS LIMITED,A0001986,06/04/2023,EST0332921,402.17,N,,N,N
Pendle Borough Council,Property Services,Premises Related Expense,Water & Sewerage,2501,WATER PLUS LIMITED,A0001986,17/04/2023,EST0333050,2968.55,N,,N,N
Pendle Borough Council,Property Services,Premises Related Expense,Water & Sewerage,2501,WATER PLUS LIMITED,A0001986,17/04/2023,EST0333053,191.39,N,,N,N
Pendle Borough Council,Property Services,Supplies and Services,Subscriptions & Donations,4706,N A B M A,A0002001,27/04/2023,EST0333384,384,N,,N,N
Pendle Borough Council,Operational Services,Premises Related Expense,Bldgs : R & M : Day To Day,2001,OPTION HYGIENE LIMITED,A0002063,27/04/2023,OPS0333250,27.24,N,,N,N
Pendle Borough Council,Property Services,Premises Related Expense,Bldgs : R & M : Day To Day,2001,OPTION HYGIENE LIMITED,A0002063,20/04/2023,EST0333246,367.5,N,,N,N
Pendle Borough Council,Parks & Recreation Services,Premises Related Expense,Grounds : R & M : Day to Day : Routine,2101,OPTION HYGIENE LIMITED,A0002063,20/04/2023,PCO0333168,24.83,N,,N,N
Pendle Borough Council,Operational Services,Supplies and Services,Other Expenses,4705,OPTION HYGIENE LIMITED,A0002063,17/04/2023,OPS0333059,142.8,N,,N,N
Pendle Borough Council,Financial Services,,Precept Parish & T Council,0303,OLD LAUND BOOTH PARISH COUNCIL,A0002067,27/04/2023,AAS0333417,3125,N,,N,N
Pendle Borough Council,Engineering & Special Projects,Supplies and Services,Postages,4501,ROYAL MAIL GROUP LIMITED,A0002281,06/04/2023,HED0332859,1.96,N,,N,N
Pendle Borough Council,Engineering & Special Projects,Supplies and Services,Postages,4501,ROYAL MAIL GROUP LIMITED,A0002281,20/04/2023,HED0333145,2.1,N,,N,N
Pendle Borough Council,Engineering & Special Projects,Supplies and Services,Postages,4501,ROYAL MAIL GROUP LIMITED,A0002281,06/04/2023,HED0332859,134.96,N,,N,N
Pendle Borough Council,Engineering & Special Projects,Supplies and Services,Postages,4501,ROYAL MAIL GROUP LIMITED,A0002281,20/04/2023,HED0333109,239.02,N,,N,N
Pendle Borough Council,Engineering & Special Projects,Supplies and Services,Postages,4501,ROYAL MAIL GROUP LIMITED,A0002281,20/04/2023,HED0333145,315.93,N,,N,N
Pendle Borough Council,Engineering & Special Projects,Supplies and Services,Postages,4501,ROYAL MAIL GROUP LIMITED,A0002281,27/04/2023,HED0333354,616.3,N,,N,N
Pendle Borough Council,Engineering & Special Projects,Supplies and Services,Postages,4501,ROYAL MAIL GROUP LIMITED,A0002281,06/04/2023,HED0332859,17.69,N,,N,N
Pendle Borough Council,Engineering & Special Projects,Supplies and Services,Postages,4501,ROYAL MAIL GROUP LIMITED,A0002281,27/04/2023,HED0333354,193.65,N,,N,N
Pendle Borough Council,Engineering & Special Projects,Supplies and Services,Postages,4501,ROYAL MAIL GROUP LIMITED,A0002281,20/04/2023,HED0333145,230.46,N,,N,N
Pendle Borough Council,Engineering & Special Projects,Supplies and Services,Postages,4501,ROYAL MAIL GROUP LIMITED,A0002281,20/04/2023,HED0333109,685.97,N,,N,N
Pendle Borough Council,Engineering & Special Projects,Supplies and Services,Postages,4501,ROYAL MAIL GROUP LIMITED,A0002281,20/04/2023,HED0333145,3.23,N,,N,N
Pendle Borough Council,Engineering & Special Projects,Supplies and Services,Postages,4501,ROYAL MAIL GROUP LIMITED,A0002281,06/04/2023,HED0332859,8.03,N,,N,N
Pendle Borough Council,Engineering & Special Projects,Supplies and Services,Postages,4501,ROYAL MAIL GROUP LIMITED,A0002281,27/04/2023,HED0333354,25.82,N,,N,N
Pendle Borough Council,Engineering & Special Projects,Supplies and Services,Postages,4501,ROYAL MAIL GROUP LIMITED,A0002281,20/04/2023,HED0333109,53.85,N,,N,N
Pendle Borough Council,Engineering & Special Projects,Supplies and Services,Postages,4501,ROYAL MAIL GROUP LIMITED,A0002281,20/04/2023,HED0333109,0.08,N,,N,N
Pendle Borough Council,Engineering & Special Projects,Supplies and Services,Postages,4501,ROYAL MAIL GROUP LIMITED,A0002281,27/04/2023,HED0333354,0.33,N,,N,N
Pendle Borough Council,Engineering & Special Projects,Supplies and Services,Postages,4501,ROYAL MAIL GROUP LIMITED,A0002281,06/04/2023,HED0332859,1.5,N,,N,N
Pendle Borough Council,Engineering & Special Projects,Supplies and Services,Postages,4501,ROYAL MAIL GROUP LIMITED,A0002281,20/04/2023,HED0333145,3.75,N,,N,N
Pendle Borough Council,Engineering & Special Projects,Supplies and Services,Postages,4501,ROYAL MAIL GROUP LIMITED,A0002281,06/04/2023,HED0332859,3.33,N,,N,N
Pendle Borough Council,Engineering & Special Projects,Supplies and Services,Postages,4501,ROYAL MAIL GROUP LIMITED,A0002281,20/04/2023,HED0333109,5.37,N,,N,N
Pendle Borough Council,Engineering & Special Projects,Supplies and Services,Postages,4501,ROYAL MAIL GROUP LIMITED,A0002281,20/04/2023,HED0333145,6.18,N,,N,N
Pendle Borough Council,Engineering & Special Projects,Supplies and Services,Postages,4501,ROYAL MAIL GROUP LIMITED,A0002281,20/04/2023,HED0333145,11.2,N,,N,N
Pendle Borough Council,Engineering & Special Projects,Supplies and Services,Postages,4501,ROYAL MAIL GROUP LIMITED,A0002281,06/04/2023,HED0332859,13.71,N,,N,N
Pendle Borough Council,Engineering & Special Projects,Supplies and Services,Postages,4501,ROYAL MAIL GROUP LIMITED,A0002281,27/04/2023,HED0333354,29.44,N,,N,N
Pendle Borough Council,Engineering & Special Projects,Supplies and Services,Postages,4501,ROYAL MAIL GROUP LIMITED,A0002281,20/04/2023,HED0333109,0.78,N,,N,N
Pendle Borough Council,Engineering & Special Projects,Supplies and Services,Postages,4501,ROYAL MAIL GROUP LIMITED,A0002281,27/04/2023,HED0333354,3.18,N,,N,N
Pendle Borough Council,Engineering & Special Projects,Supplies and Services,Postages,4501,ROYAL MAIL GROUP LIMITED,A0002281,06/04/2023,HED0332859,15.02,N,,N,N
Pendle Borough Council,Engineering & Special Projects,Supplies and Services,Postages,4501,ROYAL MAIL GROUP LIMITED,A0002281,20/04/2023,HED0333145,37.58,N,,N,N
Pendle Borough Council,Engineering & Special Projects,Supplies and Services,Postages,4501,ROYAL MAIL GROUP LIMITED,A0002281,20/04/2023,HED0333145,68.66,N,,N,N
Pendle Borough Council,Engineering & Special Projects,Supplies and Services,Postages,4501,ROYAL MAIL GROUP LIMITED,A0002281,27/04/2023,HED0333354,103.96,N,,N,N
Pendle Borough Council,Engineering & Special Projects,Supplies and Services,Postages,4501,ROYAL MAIL GROUP LIMITED,A0002281,20/04/2023,HED0333109,166.77,N,,N,N
Pendle Borough Council,Engineering & Special Projects,Supplies and Services,Postages,4501,ROYAL MAIL GROUP LIMITED,A0002281,06/04/2023,HED0332859,172.87,N,,N,N
Pendle Borough Council,Engineering & Special Projects,Supplies and Services,Postages,4501,ROYAL MAIL GROUP LIMITED,A0002281,20/04/2023,HED0333145,4,N,,N,N
Pendle Borough Council,Engineering & Special Projects,Supplies and Services,Postages,4501,ROYAL MAIL GROUP LIMITED,A0002281,27/04/2023,HED0333354,11.84,N,,N,N
Pendle Borough Council,Engineering & Special Projects,Supplies and Services,Postages,4501,ROYAL MAIL GROUP LIMITED,A0002281,06/04/2023,HED0332859,14.28,N,,N,N
Pendle Borough Council,Engineering & Special Projects,Supplies and Services,Postages,4501,ROYAL MAIL GROUP LIMITED,A0002281,20/04/2023,HED0333109,15.49,N,,N,N
Pendle Borough Council,Engineering & Special Projects,Supplies and Services,Postages,4501,ROYAL MAIL GROUP LIMITED,A0002281,27/04/2023,HED0333354,2.49,N,,N,N
Pendle Borough Council,Engineering & Special Projects,Supplies and Services,Postages,4501,ROYAL MAIL GROUP LIMITED,A0002281,20/04/2023,HED0333109,7.47,N,,N,N
Pendle Borough Council,Engineering & Special Projects,Supplies and Services,Postages,4501,ROYAL MAIL GROUP LIMITED,A0002281,20/04/2023,HED0333145,14.94,N,,N,N
Pendle Borough Council,Engineering & Special Projects,Supplies and Services,Postages,4501,ROYAL MAIL GROUP LIMITED,A0002281,06/04/2023,HED0332859,16.94,N,,N,N
Pendle Borough Council,Engineering & Special Projects,Supplies and Services,Postages,4501,ROYAL MAIL GROUP LIMITED,A0002281,20/04/2023,HED0333145,95.79,N,,N,N
Pendle Borough Council,Engineering & Special Projects,Supplies and Services,Postages,4501,ROYAL MAIL GROUP LIMITED,A0002281,20/04/2023,HED0333109,117.06,N,,N,N
Pendle Borough Council,Engineering & Special Projects,Supplies and Services,Postages,4501,ROYAL MAIL GROUP LIMITED,A0002281,06/04/2023,HED0332859,143.54,N,,N,N
Pendle Borough Council,Engineering & Special Projects,Supplies and Services,Postages,4501,ROYAL MAIL GROUP LIMITED,A0002281,27/04/2023,HED0333354,152.59,N,,N,N
Pendle Borough Council,Engineering & Special Projects,Supplies and Services,Postages,4501,ROYAL MAIL GROUP LIMITED,A0002281,27/04/2023,HED0333354,30.71,N,,N,N
Pendle Borough Council,Operational Services,Supplies and Services,Postages,4501,ROYAL MAIL GROUP LIMITED,A0002281,06/04/2023,OPS0332835,41.67,N,,N,N
Pendle Borough Council,Engineering & Special Projects,Supplies and Services,Postages,4501,ROYAL MAIL GROUP LIMITED,A0002281,20/04/2023,HED0333145,56.07,N,,N,N
Pendle Borough Council,Engineering & Special Projects,Supplies and Services,Postages,4501,ROYAL MAIL GROUP LIMITED,A0002281,20/04/2023,HED0333109,65.88,N,,N,N
Pendle Borough Council,Engineering & Special Projects,Supplies and Services,Postages,4501,ROYAL MAIL GROUP LIMITED,A0002281,06/04/2023,HED0332859,85.12,N,,N,N
Pendle Borough Council,Engineering & Special Projects,Supplies and Services,Other Expenses,4705,ROYAL MAIL GROUP LIMITED,A0002281,27/04/2023,HED0333354,60.37,N,,N,N
Pendle Borough Council,Financial Services,,Precept Parish & T Council,0303,REEDLEY HALLOWS PARISH COUNCIL,A0002283,27/04/2023,AAS0333418,2994.08,N,,N,N
Pendle Borough Council,Parks & Recreation Services,Transport Related Expense,Tprt : Repairs : General,3105,F R SHARROCK LTD,A0002413,20/04/2023,PCO0333149,56.64,N,,N,N
Pendle Borough Council,Parks & Recreation Services,Transport Related Expense,Tprt : Repairs : General,3105,F R SHARROCK LTD,A0002413,20/04/2023,PCO0333151,65,N,,N,N
Pendle Borough Council,Parks & Recreation Services,Transport Related Expense,Tprt : Repairs : General,3105,F R SHARROCK LTD,A0002413,20/04/2023,PCO0333151,65,N,,N,N
Pendle Borough Council,Engineering & Special Projects,Supplies and Services,Printing & Stationery,4301,SHAW & SONS LTD,A0002414,27/04/2023,HED0333355,72,N,,N,N
Pendle Borough Council,Engineering & Special Projects,Supplies and Services,Printing & Stationery,4301,SHAW & SONS LTD,A0002414,20/04/2023,HED0333203,404,N,,N,N
Pendle Borough Council,Engineering & Special Projects,Supplies and Services,Printing & Stationery,4301,SHAW & SONS LTD,A0002414,17/04/2023,HED0333004,1563.2,N,,N,N
Pendle Borough Council,Engineering & Special Projects,Supplies and Services,Printing & Stationery,4301,SHAW & SONS LTD,A0002414,20/04/2023,HED4006710,-70,N,,N,N
Pendle Borough Council,Engineering & Special Projects,Supplies and Services,Printing & Stationery,4301,SHAW & SONS LTD,A0002414,06/04/2023,HED0332792,441.7,N,,N,N
Pendle Borough Council,Operational Services,Agency Staff,Emp : Agency Wages,1004,STANLEY BROTHERS (TIPPERS) LTD,A0002422,27/04/2023,OPS0333343,90,N,,N,N
Pendle Borough Council,Operational Services,Agency Staff,Emp : Agency Wages,1004,STANLEY BROTHERS (TIPPERS) LTD,A0002422,27/04/2023,OPS0333344,288,N,,N,N
Pendle Borough Council,Operational Services,Transport Related Expense,Tprt : Annual Hire Charge,3601,STANLEY BROTHERS (TIPPERS) LTD,A0002422,20/04/2023,OPS0333176,2530,N,,N,N
Pendle Borough Council,Parks & Recreation Services,Transport Related Expense,Tprt : Repairs : General,3105,SPALDINGS (UK) LTD,A0002537,20/04/2023,PCO0333157,97.5,N,,N,N
Pendle Borough Council,Parks & Recreation Services,Transport Related Expense,Tprt : Repairs : General,3105,SPALDINGS (UK) LTD,A0002537,27/04/2023,PCO0333308,170.74,N,,N,N
Pendle Borough Council,Operational Services,,Stock : Purchases,PJ01,SPALDINGS (UK) LTD,A0002537,06/04/2023,OPS0332890,287.5,N,,N,N
Pendle Borough Council,Parks & Recreation Services,Premises Related Expense,Bldgs : R & M : Day To Day,2001,ROBERTSON MEMORIALS,A0002590,20/04/2023,PCO0333155,67.5,N,,N,N
Pendle Borough Council,Parks & Recreation Services,Premises Related Expense,Grounds : R & M : Day to Day : Routine,2101,ROBERTSON MEMORIALS,A0002590,20/04/2023,PCO0333150,328.33,N,,N,N
Pendle Borough Council,Parks & Recreation Services,Premises Related Expense,Grounds : R & M : Day to Day : Routine,2101,T & F STEEL DESIGNS LTD,A0002627,20/04/2023,PCO0333154,160,N,,N,N
Pendle Borough Council,Engineering & Special Projects,Premises Related Expense,Grounds : R & M : Day to Day : Routine,2101,T & F STEEL DESIGNS LTD,A0002627,17/04/2023,HED0333100,110,N,,N,N
Pendle Borough Council,Engineering & Special Projects,Premises Related Expense,Grounds : R & M : Day to Day : Routine,2101,T & F STEEL DESIGNS LTD,A0002627,17/04/2023,HED0333100,290,N,,N,N
Pendle Borough Council,Engineering & Special Projects,Capital Costs,Ren Grant : 1996 Act,CH22,CLOSOMAT LIMITED,A0002685,20/04/2023,HED0333216,4881,N,,N,N
Pendle Borough Council,Operational Services,Agency Staff,Emp : Agency Wages,1004,DHRB LIMITED T/A DRIVER HIRE (45680),A0003556,27/04/2023,OPS0333335,134.89,N,,N,N
Pendle Borough Council,Operational Services,Agency Staff,Emp : Agency Wages,1004,DHRB LIMITED T/A DRIVER HIRE (45680),A0003556,27/04/2023,OPS0333337,158.98,N,,N,N
Pendle Borough Council,Operational Services,Agency Staff,Emp : Agency Wages,1004,DHRB LIMITED T/A DRIVER HIRE (45680),A0003556,27/04/2023,OPS0333336,476.93,N,,N,N
Pendle Borough Council,Operational Services,Supplies and Services,Other Expenses,4705,ENVIRONMENT AGENCY,A0003560,20/04/2023,OPS0333187,1295,N,,N,N
Pendle Borough Council,Parks & Recreation Services,Premises Related Expense,Grounds : R & M : Day to Day : Routine,2101,WICKSTEED LEISURE LTD,A0004748,17/04/2023,PCO0332988,2191.27,N,,N,N
Pendle Borough Council,Planning & Building Control,Supplies and Services,Grant Funding,4737,BUILDING BRIDGES PENDLE,A0005524,20/04/2023,PBC0333221,2360,N,1144741,N,N
Pendle Borough Council,Engineering & Special Projects,Indirect Employee Expenses,Staff Refreshments,1261,PHILIP SANDERSON,A0006611,17/04/2023,HED0333001,26.91,N,,N,N
Pendle Borough Council,Engineering & Special Projects,Supplies and Services,Hospitality,4611,PHILIP SANDERSON,A0006611,17/04/2023,HED0333001,26.91,N,,N,N
Pendle Borough Council,Property Services,Indirect Employee Expenses,Staff Refreshments,1261,VENDA VALET (MACHINES) LTD,A0009649,06/04/2023,EST0332899,65,N,,N,N
Pendle Borough Council,Property Services,Capital Costs,Capital : Payments,CD14,SANDEROOF LTD,A0009837,27/04/2023,EST0333388,1477,N,,N,N
Pendle Borough Council,Human Resources,Supplies and Services,Subscriptions & Donations,4706,NORTH WESTERN EMPLOYERS ORGANISATION,A0010430,20/04/2023,PER0333233,4829.09,N,,N,N
Pendle Borough Council,Financial Services,Premises Related Expense,Bldgs : R & M : Day To Day,2001,PENDLE LEISURE LIMITED,A0012961,27/04/2023,AAS0333452,9.75,N,XR43029,N,N
Pendle Borough Council,Financial Services,Premises Related Expense,Bldgs : R & M : Day To Day,2001,PENDLE LEISURE LIMITED,A0012961,27/04/2023,AAS0333453,30,N,XR43029,N,N
Pendle Borough Council,Financial Services,Premises Related Expense,Bldgs : R & M : Day To Day,2001,PENDLE LEISURE LIMITED,A0012961,27/04/2023,AAS0333452,36.66,N,XR43029,N,N
Pendle Borough Council,Financial Services,Premises Related Expense,Bldgs : R & M : Day To Day,2001,PENDLE LEISURE LIMITED,A0012961,27/04/2023,AAS0333452,43.75,N,XR43029,N,N
Pendle Borough Council,Financial Services,Premises Related Expense,Bldgs : R & M : Day To Day,2001,PENDLE LEISURE LIMITED,A0012961,27/04/2023,AAS0333452,132.73,N,XR43029,N,N
Pendle Borough Council,Financial Services,Premises Related Expense,Bldgs : R & M : Day To Day,2001,PENDLE LEISURE LIMITED,A0012961,27/04/2023,AAS0333452,134.98,N,XR43029,N,N
Pendle Borough Council,Financial Services,Premises Related Expense,Bldgs : R & M : Day To Day,2001,PENDLE LEISURE LIMITED,A0012961,27/04/2023,AAS0333452,164.81,N,XR43029,N,N
Pendle Borough Council,Financial Services,Premises Related Expense,Bldgs : R & M : Day To Day,2001,PENDLE LEISURE LIMITED,A0012961,27/04/2023,AAS0333452,208.14,N,XR43029,N,N
Pendle Borough Council,Financial Services,Premises Related Expense,Bldgs : R & M : Day To Day,2001,PENDLE LEISURE LIMITED,A0012961,27/04/2023,AAS0333452,210,N,XR43029,N,N
Pendle Borough Council,Financial Services,Premises Related Expense,Bldgs : R & M : Day To Day,2001,PENDLE LEISURE LIMITED,A0012961,27/04/2023,AAS0333452,400,N,XR43029,N,N
Pendle Borough Council,Financial Services,Premises Related Expense,Bldgs : R & M : Day To Day,2001,PENDLE LEISURE LIMITED,A0012961,27/04/2023,AAS0333452,795.62,N,XR43029,N,N
Pendle Borough Council,Financial Services,Premises Related Expense,Gas,2202,PENDLE LEISURE LIMITED,A0012961,27/04/2023,AAS0333453,52.36,N,XR43029,N,N
Pendle Borough Council,Financial Services,Premises Related Expense,Gas,2202,PENDLE LEISURE LIMITED,A0012961,27/04/2023,AAS0333452,56.1,N,XR43029,N,N
Pendle Borough Council,Financial Services,Premises Related Expense,Gas,2202,PENDLE LEISURE LIMITED,A0012961,27/04/2023,AAS0333452,56.1,N,XR43029,N,N
Pendle Borough Council,Financial Services,Premises Related Expense,Gas,2202,PENDLE LEISURE LIMITED,A0012961,27/04/2023,AAS0333452,56.3,N,XR43029,N,N
Pendle Borough Council,Financial Services,Premises Related Expense,Gas,2202,PENDLE LEISURE LIMITED,A0012961,27/04/2023,AAS0333452,56.3,N,XR43029,N,N
Pendle Borough Council,Financial Services,Premises Related Expense,Gas,2202,PENDLE LEISURE LIMITED,A0012961,27/04/2023,AAS0333452,57.97,N,XR43029,N,N
Pendle Borough Council,Financial Services,Premises Related Expense,Gas,2202,PENDLE LEISURE LIMITED,A0012961,27/04/2023,AAS0333452,57.97,N,XR43029,N,N
Pendle Borough Council,Financial Services,Premises Related Expense,Gas,2202,PENDLE LEISURE LIMITED,A0012961,27/04/2023,AAS0333452,57.97,N,XR43029,N,N
Pendle Borough Council,Financial Services,Premises Related Expense,Gas,2202,PENDLE LEISURE LIMITED,A0012961,27/04/2023,AAS0333452,57.97,N,XR43029,N,N
Pendle Borough Council,Financial Services,Premises Related Expense,Gas,2202,PENDLE LEISURE LIMITED,A0012961,27/04/2023,AAS0333453,58.17,N,XR43029,N,N
Pendle Borough Council,Financial Services,Premises Related Expense,Gas,2202,PENDLE LEISURE LIMITED,A0012961,27/04/2023,AAS0333452,58.17,N,XR43029,N,N
Pendle Borough Council,Financial Services,Premises Related Expense,Gas,2202,PENDLE LEISURE LIMITED,A0012961,27/04/2023,AAS0333452,344.32,N,XR43029,N,N
Pendle Borough Council,Financial Services,Premises Related Expense,Gas,2202,PENDLE LEISURE LIMITED,A0012961,27/04/2023,AAS0333452,510.97,N,XR43029,N,N
Pendle Borough Council,Financial Services,Premises Related Expense,Gas,2202,PENDLE LEISURE LIMITED,A0012961,27/04/2023,AAS0333452,611.64,N,XR43029,N,N
Pendle Borough Council,Financial Services,Premises Related Expense,Gas,2202,PENDLE LEISURE LIMITED,A0012961,27/04/2023,AAS0333452,717.87,N,XR43029,N,N
Pendle Borough Council,Financial Services,Premises Related Expense,Gas,2202,PENDLE LEISURE LIMITED,A0012961,27/04/2023,AAS0333452,723.89,N,XR43029,N,N
Pendle Borough Council,Financial Services,Premises Related Expense,Gas,2202,PENDLE LEISURE LIMITED,A0012961,27/04/2023,AAS0333452,737.11,N,XR43029,N,N
Pendle Borough Council,Financial Services,Premises Related Expense,Gas,2202,PENDLE LEISURE LIMITED,A0012961,27/04/2023,AAS0333452,861.04,N,XR43029,N,N
Pendle Borough Council,Financial Services,Premises Related Expense,Gas,2202,PENDLE LEISURE LIMITED,A0012961,27/04/2023,AAS0333452,1057.23,N,XR43029,N,N
Pendle Borough Council,Financial Services,Premises Related Expense,Gas,2202,PENDLE LEISURE LIMITED,A0012961,27/04/2023,AAS0333453,1105.08,N,XR43029,N,N
Pendle Borough Council,Financial Services,Premises Related Expense,Gas,2202,PENDLE LEISURE LIMITED,A0012961,27/04/2023,AAS0333452,1112.87,N,XR43029,N,N
Pendle Borough Council,Financial Services,Premises Related Expense,Gas,2202,PENDLE LEISURE LIMITED,A0012961,27/04/2023,AAS0333452,1397.51,N,XR43029,N,N
Pendle Borough Council,Financial Services,Premises Related Expense,Gas,2202,PENDLE LEISURE LIMITED,A0012961,27/04/2023,AAS0333453,1431,N,XR43029,N,N
Pendle Borough Council,Financial Services,Premises Related Expense,Electricity,2203,PENDLE LEISURE LIMITED,A0012961,27/04/2023,AAS0333452,458.76,N,XR43029,N,N
Pendle Borough Council,Financial Services,Premises Related Expense,Electricity,2203,PENDLE LEISURE LIMITED,A0012961,27/04/2023,AAS0333452,461.34,N,XR43029,N,N
Pendle Borough Council,Financial Services,Premises Related Expense,Electricity,2203,PENDLE LEISURE LIMITED,A0012961,27/04/2023,AAS0333452,470.52,N,XR43029,N,N
Pendle Borough Council,Financial Services,Premises Related Expense,Electricity,2203,PENDLE LEISURE LIMITED,A0012961,27/04/2023,AAS0333452,475.04,N,XR43029,N,N
Pendle Borough Council,Financial Services,Premises Related Expense,Electricity,2203,PENDLE LEISURE LIMITED,A0012961,27/04/2023,AAS0333452,476.98,N,XR43029,N,N
Pendle Borough Council,Financial Services,Premises Related Expense,Electricity,2203,PENDLE LEISURE LIMITED,A0012961,27/04/2023,AAS0333453,495.96,N,XR43029,N,N
Pendle Borough Council,Financial Services,Premises Related Expense,Electricity,2203,PENDLE LEISURE LIMITED,A0012961,27/04/2023,AAS0333453,543.92,N,XR43029,N,N
Pendle Borough Council,Financial Services,Premises Related Expense,Electricity,2203,PENDLE LEISURE LIMITED,A0012961,27/04/2023,AAS0333452,573.85,N,XR43029,N,N
Pendle Borough Council,Financial Services,Premises Related Expense,Electricity,2203,PENDLE LEISURE LIMITED,A0012961,27/04/2023,AAS0333452,615.18,N,XR43029,N,N
Pendle Borough Council,Financial Services,Premises Related Expense,Electricity,2203,PENDLE LEISURE LIMITED,A0012961,27/04/2023,AAS0333452,783.63,N,XR43029,N,N
Pendle Borough Council,Financial Services,Premises Related Expense,Electricity,2203,PENDLE LEISURE LIMITED,A0012961,27/04/2023,AAS0333452,1725.85,N,XR43029,N,N
Pendle Borough Council,Financial Services,Premises Related Expense,Water & Sewerage,2501,PENDLE LEISURE LIMITED,A0012961,27/04/2023,AAS0333452,0.19,N,XR43029,N,N
Pendle Borough Council,Financial Services,Premises Related Expense,Water & Sewerage,2501,PENDLE LEISURE LIMITED,A0012961,27/04/2023,AAS0333453,10.91,N,XR43029,N,N
Pendle Borough Council,Financial Services,Premises Related Expense,Water & Sewerage,2501,PENDLE LEISURE LIMITED,A0012961,27/04/2023,AAS0333452,11.68,N,XR43029,N,N
Pendle Borough Council,Financial Services,Premises Related Expense,Water & Sewerage,2501,PENDLE LEISURE LIMITED,A0012961,27/04/2023,AAS0333452,11.68,N,XR43029,N,N
Pendle Borough Council,Financial Services,Premises Related Expense,Water & Sewerage,2501,PENDLE LEISURE LIMITED,A0012961,27/04/2023,AAS0333452,12.07,N,XR43029,N,N
Pendle Borough Council,Financial Services,Premises Related Expense,Water & Sewerage,2501,PENDLE LEISURE LIMITED,A0012961,27/04/2023,AAS0333452,12.07,N,XR43029,N,N
Pendle Borough Council,Financial Services,Premises Related Expense,Water & Sewerage,2501,PENDLE LEISURE LIMITED,A0012961,27/04/2023,AAS0333452,12.07,N,XR43029,N,N
Pendle Borough Council,Financial Services,Premises Related Expense,Water & Sewerage,2501,PENDLE LEISURE LIMITED,A0012961,27/04/2023,AAS0333452,12.07,N,XR43029,N,N
Pendle Borough Council,Financial Services,Premises Related Expense,Water & Sewerage,2501,PENDLE LEISURE LIMITED,A0012961,27/04/2023,AAS0333453,12.07,N,XR43029,N,N
Pendle Borough Council,Financial Services,Premises Related Expense,Water & Sewerage,2501,PENDLE LEISURE LIMITED,A0012961,27/04/2023,AAS0333452,14.55,N,XR43029,N,N
Pendle Borough Council,Financial Services,Premises Related Expense,Water & Sewerage,2501,PENDLE LEISURE LIMITED,A0012961,27/04/2023,AAS0333452,14.94,N,XR43029,N,N
Pendle Borough Council,Financial Services,Premises Related Expense,Water & Sewerage,2501,PENDLE LEISURE LIMITED,A0012961,27/04/2023,AAS0333453,121.51,N,XR43029,N,N
Pendle Borough Council,Financial Services,Premises Related Expense,Water & Sewerage,2501,PENDLE LEISURE LIMITED,A0012961,27/04/2023,AAS0333452,130.2,N,XR43029,N,N
Pendle Borough Council,Financial Services,Premises Related Expense,Water & Sewerage,2501,PENDLE LEISURE LIMITED,A0012961,27/04/2023,AAS0333452,130.2,N,XR43029,N,N
Pendle Borough Council,Financial Services,Premises Related Expense,Water & Sewerage,2501,PENDLE LEISURE LIMITED,A0012961,27/04/2023,AAS0333452,130.2,N,XR43029,N,N
Pendle Borough Council,Financial Services,Premises Related Expense,Water & Sewerage,2501,PENDLE LEISURE LIMITED,A0012961,27/04/2023,AAS0333452,130.2,N,XR43029,N,N
Pendle Borough Council,Financial Services,Premises Related Expense,Water & Sewerage,2501,PENDLE LEISURE LIMITED,A0012961,27/04/2023,AAS0333452,134.54,N,XR43029,N,N
Pendle Borough Council,Financial Services,Premises Related Expense,Water & Sewerage,2501,PENDLE LEISURE LIMITED,A0012961,27/04/2023,AAS0333452,134.54,N,XR43029,N,N
Pendle Borough Council,Financial Services,Premises Related Expense,Water & Sewerage,2501,PENDLE LEISURE LIMITED,A0012961,27/04/2023,AAS0333452,134.54,N,XR43029,N,N
Pendle Borough Council,Financial Services,Premises Related Expense,Water & Sewerage,2501,PENDLE LEISURE LIMITED,A0012961,27/04/2023,AAS0333452,134.54,N,XR43029,N,N
Pendle Borough Council,Financial Services,Premises Related Expense,Water & Sewerage,2501,PENDLE LEISURE LIMITED,A0012961,27/04/2023,AAS0333452,134.54,N,XR43029,N,N
Pendle Borough Council,Financial Services,Premises Related Expense,Water & Sewerage,2501,PENDLE LEISURE LIMITED,A0012961,27/04/2023,AAS0333453,134.54,N,XR43029,N,N
Pendle Borough Council,Financial Services,Premises Related Expense,Trade Refuse Charges,2602,PENDLE LEISURE LIMITED,A0012961,27/04/2023,AAS0333452,50,N,XR43029,N,N
Pendle Borough Council,Financial Services,Premises Related Expense,Trade Refuse Charges,2602,PENDLE LEISURE LIMITED,A0012961,27/04/2023,AAS0333452,108.66,N,XR43029,N,N
Pendle Borough Council,Financial Services,Supplies and Services,Telephones : Direct,4502,PENDLE LEISURE LIMITED,A0012961,27/04/2023,AAS0333453,-2.66,N,XR43029,N,N
Pendle Borough Council,Financial Services,Supplies and Services,Telephones : Direct,4502,PENDLE LEISURE LIMITED,A0012961,27/04/2023,AAS0333453,107.98,N,XR43029,N,N
Pendle Borough Council,Financial Services,Supplies and Services,Telephones : Direct,4502,PENDLE LEISURE LIMITED,A0012961,27/04/2023,AAS0333452,144.75,N,XR43029,N,N
Pendle Borough Council,Financial Services,Supplies and Services,Telephones : Direct,4502,PENDLE LEISURE LIMITED,A0012961,27/04/2023,AAS0333452,182.76,N,XR43029,N,N
Pendle Borough Council,Financial Services,Supplies and Services,Telephones : Direct,4502,PENDLE LEISURE LIMITED,A0012961,27/04/2023,AAS0333452,185.05,N,XR43029,N,N
Pendle Borough Council,Financial Services,Supplies and Services,Computer Charges,4509,PENDLE LEISURE LIMITED,A0012961,27/04/2023,AAS0333452,30,N,XR43029,N,N
Pendle Borough Council,Financial Services,Supplies and Services,Computer Charges,4509,PENDLE LEISURE LIMITED,A0012961,27/04/2023,AAS0333452,151.48,N,XR43029,N,N
Pendle Borough Council,Financial Services,Supplies and Services,Computer Charges,4509,PENDLE LEISURE LIMITED,A0012961,27/04/2023,AAS0333452,155.47,N,XR43029,N,N
Pendle Borough Council,Financial Services,Supplies and Services,Insurances,4701,PENDLE LEISURE LIMITED,A0012961,27/04/2023,AAS0333452,112,N,XR43029,N,N
Pendle Borough Council,Financial Services,Supplies and Services,Insurances,4701,PENDLE LEISURE LIMITED,A0012961,27/04/2023,AAS0333452,208.22,N,XR43029,N,N
Pendle Borough Council,Financial Services,Supplies and Services,Insurances,4701,PENDLE LEISURE LIMITED,A0012961,27/04/2023,AAS0333452,4893.63,N,XR43029,N,N
Pendle Borough Council,Financial Services,Supplies and Services,Other Expenses,4705,PENDLE LEISURE LIMITED,A0012961,03/04/2023,AAS0333579,603705,N,XR43029,N,N
Pendle Borough Council,Engineering & Special Projects,Supplies and Services,Children`s holiday activities,4716,PENDLE LEISURE LIMITED,A0012961,06/04/2023,HED0332790,5976,N,XR43029,N,N
Pendle Borough Council,Operational Services,Supplies and Services,Sub-Contractors,4007,ORCHARD RECYCLING SERVICE,A0015803,20/04/2023,OPS0333169,1817.2,N,,N,N
Pendle Borough Council,Operational Services,Supplies and Services,Sub-Contractors,4007,ORCHARD RECYCLING SERVICE,A0015803,17/04/2023,OPS0333058,1986.6,N,,N,N
Pendle Borough Council,Operational Services,Supplies and Services,Sub-Contractors,4007,ORCHARD RECYCLING SERVICE,A0015803,27/04/2023,OPS0333317,2464,N,,N,N
Pendle Borough Council,Operational Services,Supplies and Services,Sub-Contractors,4007,ORCHARD RECYCLING SERVICE,A0015803,06/04/2023,OPS0332875,2502.5,N,,N,N
Pendle Borough Council,Operational Services,Supplies and Services,Other Expenses,4705,LARAC LTD,A0020403,27/04/2023,OPS0333318,445,N,,N,N
Pendle Borough Council,Human Resources,Indirect Employee Expenses,Recruitment,1221,CHARTERED INST OF ENV HEALTH,A0020604,27/04/2023,PER0333316,800,N,,N,N
Pendle Borough Council,Engineering & Special Projects,Capital Costs,Ren Grant : 1996 Act,CH22,STANNAH LIFT SERVICES LTD,A0021089,17/04/2023,HED0333012,2955,N,,N,N
Pendle Borough Council,Engineering & Special Projects,Capital Costs,Ren Grant : 1996 Act,CH22,STANNAH LIFT SERVICES LTD,A0021089,17/04/2023,HED0333011,7349,N,,N,N
Pendle Borough Council,Operational Services,Premises Related Expense,Bldgs : R & M : Day To Day,2001,SAANRO INTERNATIONAL LTD,A0021480,17/04/2023,OPS0333060,689.2,N,,N,N
Pendle Borough Council,Operational Services,Supplies and Services,Sub-Contractors,4007,ASPEN VALLEY KENNELS & CATTERY,A0022106,20/04/2023,OPS0333192,950,N,,N,N
Pendle Borough Council,Operational Services,Supplies and Services,Other Expenses,4705,ASPEN VALLEY KENNELS & CATTERY,A0022106,20/04/2023,OPS0333192,1080.6,N,,N,N
Pendle Borough Council,Engineering & Special Projects,Supplies and Services,Other Expenses,4705,GRADKO INTERNATIONAL LTD,A0025806,27/04/2023,HED0333356,201.6,N,,N,N
Pendle Borough Council,Property Services,Premises Related Expense,Service Charge,2702,BARNFIELD INVESTMENT PROPERTIES LTD,A0026595,06/04/2023,EST0332925,2484.13,N,,N,N
Pendle Borough Council,Property Services,Premises Related Expense,Bldgs : R & M : Day To Day,2001,PENNINE FIRE & SAFETY LTD,A0040931,27/04/2023,EST0333375,40,N,,N,N
Pendle Borough Council,Property Services,Premises Related Expense,Bldgs : R & M : Day To Day,2001,PENNINE FIRE & SAFETY LTD,A0040931,20/04/2023,EST0333241,64,N,,N,N
Pendle Borough Council,Property Services,Premises Related Expense,Bldgs : R & M : Day To Day,2001,PENNINE FIRE & SAFETY LTD,A0040931,27/04/2023,EST0333403,8.05,N,,N,N
Pendle Borough Council,Property Services,Premises Related Expense,Bldgs : R & M : Day To Day,2001,PENNINE FIRE & SAFETY LTD,A0040931,27/04/2023,EST0333377,200.15,N,,N,N
Pendle Borough Council,Property Services,Premises Related Expense,Bldgs : R & M : Day To Day,2001,PENNINE FIRE & SAFETY LTD,A0040931,27/04/2023,EST0333402,8.05,N,,N,N
Pendle Borough Council,Property Services,Premises Related Expense,Bldgs : R & M : Day To Day,2001,PENNINE FIRE & SAFETY LTD,A0040931,27/04/2023,EST0333383,177.15,N,,N,N
Pendle Borough Council,Property Services,Premises Related Expense,Bldgs : R & M : Day To Day,2001,PENNINE FIRE & SAFETY LTD,A0040931,27/04/2023,EST0333404,19,N,,N,N
Pendle Borough Council,Property Services,Premises Related Expense,Bldgs : R & M : Day To Day,2001,PENNINE FIRE & SAFETY LTD,A0040931,27/04/2023,EST0333376,164,N,,N,N
Pendle Borough Council,Property Services,Premises Related Expense,Bldgs : R & M : Day To Day,2001,PENNINE FIRE & SAFETY LTD,A0040931,27/04/2023,EST0333382,188.95,N,,N,N
Pendle Borough Council,Property Services,Premises Related Expense,Bldgs : R & M : Day To Day,2001,PENNINE FIRE & SAFETY LTD,A0040931,27/04/2023,EST0333381,325,N,,N,N
Pendle Borough Council,Property Services,Premises Related Expense,Bldgs : R & M : Day To Day,2001,PENNINE FIRE & SAFETY LTD,A0040931,27/04/2023,EST0333378,381.85,N,,N,N
Pendle Borough Council,Engineering & Special Projects,Supplies and Services,Printing & Stationery,4301,CIVICA ELECTION SERVICES,A0041321,06/04/2023,HED0332793,411.36,N,,N,N
Pendle Borough Council,Engineering & Special Projects,Supplies and Services,Other Expenses,4705,NATHANIEL LICHFIELD & PARTNERS,A0042398,06/04/2023,HED0332815,14996,N,,N,N
Pendle Borough Council,Operational Services,Supplies and Services,EFM : Other Equipment,4003,SHORROCK TRICHEM LIMITED,A0042464,20/04/2023,OPS0333198,149.97,N,,N,N
Pendle Borough Council,Property Services,Premises Related Expense,Bldgs : R & M : Day To Day,2001,D J LINGARD & ASSOCIATES LTD,A0042727,27/04/2023,EST0333397,360,N,,N,N
Pendle Borough Council,Financial Services,,Precept Parish & T Council,0303,ROUGHLEE BOOTH PARISH COUNCIL,A0042922,27/04/2023,AAS0333419,2122.79,N,,N,N
Pendle Borough Council,Operational Services,,Stock : Purchases,PJ01,PMC POLYTHENE LIMITED,A0043215,06/04/2023,OPS0332889,2769.69,N,,N,N
Pendle Borough Council,Planning & Building Control,Capital Costs,Capital : Payments,CD14,BUOYANT UPHOLSTERY LTD,A0043788,17/04/2023,PBC0333111,100000,N,,N,N
Pendle Borough Council,Operational Services,Supplies and Services,Sub-Contractors,4007,S M SHEPHERD BUILDING CONTRACTORS,A0044037,06/04/2023,OPS0332836,60,N,,N,N
Pendle Borough Council,Operational Services,Supplies and Services,Sub-Contractors,4007,S M SHEPHERD BUILDING CONTRACTORS,A0044037,06/04/2023,OPS0332836,60,N,,N,N
Pendle Borough Council,Operational Services,Supplies and Services,Sub-Contractors,4007,S M SHEPHERD BUILDING CONTRACTORS,A0044037,06/04/2023,OPS0332837,320,N,,N,N
Pendle Borough Council,Operational Services,Supplies and Services,Sub-Contractors,4007,S M SHEPHERD BUILDING CONTRACTORS,A0044037,06/04/2023,OPS0332888,500,N,,N,N
Pendle Borough Council,Operational Services,Agency Costs,Refuse Collection DLO,5005,S M SHEPHERD BUILDING CONTRACTORS,A0044037,06/04/2023,OPS0332891,50,N,,N,N
Pendle Borough Council,Operational Services,Agency Costs,Refuse Collection DLO,5005,S M SHEPHERD BUILDING CONTRACTORS,A0044037,06/04/2023,OPS0332891,50,N,,N,N
Pendle Borough Council,Engineering & Special Projects,Supplies and Services,Miscellaneous : Other,4707,BURNLEY BOROUGH COUNCIL,A0044855,27/04/2023,HED0333351,353.37,N,,N,N
Pendle Borough Council,Engineering & Special Projects,Supplies and Services,Meeting Expenses,4610,MOUNT ZION BAPTIST CHURCH,A0045270,06/04/2023,HED0332786,40,N,,N,N
Pendle Borough Council,Human Resources,Supplies and Services,EFM : Office and computer equipment,4002,HFX LTD,A0046816,20/04/2023,PER0333231,506.64,N,,N,N
Pendle Borough Council,Human Resources,Supplies and Services,EFM : Office and computer equipment,4002,HFX LTD,A0046816,20/04/2023,PER0333232,728.3,N,,N,N
Pendle Borough Council,Engineering & Special Projects,Supplies and Services,EFM : Office and computer equipment,4002,TWOFOLD LIMITED,A0047099,17/04/2023,HED0332998,1748.3,N,,N,N
Pendle Borough Council,Engineering & Special Projects,Capital Costs,Capital : Payments,CD14,BOWLAND ECOLOGY LIMITED,A0047425,17/04/2023,HED0333015,1032,N,,N,N
Pendle Borough Council,Parks & Recreation Services,Premises Related Expense,Grounds : R & M : Day to Day : Routine,2101,LOOP PUBLISHING LTD,A0047429,17/04/2023,PCO0333020,140,N,,N,N
Pendle Borough Council,Property Services,Premises Related Expense,Electricity,2203,NPOWER,A0048483,17/04/2023,EST0333035,728.08,N,,N,N
Pendle Borough Council,Parks & Recreation Services,Premises Related Expense,Bldgs : R & M : Day To Day,2001,ICCM,A0050090,20/04/2023,PCO0333181,455,N,,N,N
Pendle Borough Council,Parks & Recreation Services,Transport Related Expense,Tprt : Repairs : General,3105,CAMPEY TURF CARE SYSTEMS,A0050717,17/04/2023,PCO0333029,388.1,N,,N,N
Pendle Borough Council,Parks & Recreation Services,Transport Related Expense,Tprt : Repairs : General,3105,CAMPEY TURF CARE SYSTEMS,A0050717,17/04/2023,PCO0333029,357,N,,N,N
Pendle Borough Council,Parks & Recreation Services,Transport Related Expense,Tprt : Repairs : General,3105,ROSSENDALE VULCANISING (SALES LTD),A0051239,17/04/2023,PCO0333023,81,N,,N,N
Pendle Borough Council,Parks & Recreation Services,Transport Related Expense,Tprt : Repairs : General,3105,ROSSENDALE VULCANISING (SALES LTD),A0051239,17/04/2023,PCO0333023,150,N,,N,N
Pendle Borough Council,Parks & Recreation Services,Transport Related Expense,Tprt : Repairs : General,3105,ROSSENDALE VULCANISING (SALES LTD),A0051239,17/04/2023,PCO0333023,22,N,,N,N
Pendle Borough Council,Parks & Recreation Services,Transport Related Expense,Tprt : Repairs : General,3105,ROSSENDALE VULCANISING (SALES LTD),A0051239,17/04/2023,PCO0333023,150,N,,N,N
Pendle Borough Council,Parks & Recreation Services,Transport Related Expense,Tprt : Repairs : General,3105,ROSSENDALE VULCANISING (SALES LTD),A0051239,17/04/2023,PCO0333023,150,N,,N,N
Pendle Borough Council,Financial Services,Premises Related Expense,Rents,2301,LIBERATA UK LTD,A0051618,06/04/2023,AAS0332976,502.33,N,,N,N
Pendle Borough Council,Financial Services,Supplies and Services,Consultants Fees,4401,LIBERATA UK LTD,A0051618,06/04/2023,AAS0332977,18316.58,N,,N,N
Pendle Borough Council,Engineering & Special Projects,Supplies and Services,Publicity & advertisement,4704,LIBERATA UK LTD,A0051618,06/04/2023,HED0332860,1000,N,,N,N
Pendle Borough Council,Financial Services,Agency Costs,Liberata U/C,5303,LIBERATA UK LTD,A0051618,14/04/2023,AAS0333584,6191.67,N,,N,N
Pendle Borough Council,Financial Services,Agency Costs,Liberata U/C,5303,LIBERATA UK LTD,A0051618,14/04/2023,AAS0333584,34439.05,N,,N,N
Pendle Borough Council,Financial Services,Agency Costs,Liberata U/C,5303,LIBERATA UK LTD,A0051618,14/04/2023,AAS0333584,30524.21,N,,N,N
Pendle Borough Council,Financial Services,Agency Costs,Liberata U/C,5303,LIBERATA UK LTD,A0051618,14/04/2023,AAS0333584,87715.02,N,,N,N
Pendle Borough Council,Financial Services,Agency Costs,Liberata U/C,5303,LIBERATA UK LTD,A0051618,14/04/2023,AAS0333584,57718.75,N,,N,N
Pendle Borough Council,Financial Services,Agency Costs,Liberata U/C,5303,LIBERATA UK LTD,A0051618,14/04/2023,AAS0333584,89614.79,N,,N,N
Pendle Borough Council,Financial Services,Agency Costs,Liberata U/C,5303,LIBERATA UK LTD,A0051618,14/04/2023,AAS0333584,117970.91,N,,N,N
Pendle Borough Council,Engineering & Special Projects,Capital Costs,Capital: Design Fees,CD53,LIBERATA UK LTD,A0051618,17/04/2023,HED0333022,3947.83,N,,N,N
Pendle Borough Council,Property Services,Premises Related Expense,Electricity,2203,SOUTHERN ELECTRIC,A0051726,17/04/2023,EST0333055,497.4,N,,N,N
Pendle Borough Council,Operational Services,Capital Costs,Capital : Payments,CD14,MGB PLASTICS LIMITED,A0052535,27/04/2023,OPS0333322,1550,N,,N,N
Pendle Borough Council,Operational Services,Capital Costs,Capital : Payments,CD14,MGB PLASTICS LIMITED,A0052535,27/04/2023,OPS0333322,1550,N,,N,N
Pendle Borough Council,Operational Services,Capital Costs,Capital : Payments,CD14,MGB PLASTICS LIMITED,A0052535,27/04/2023,OPS0333322,6615,N,,N,N
Pendle Borough Council,Operational Services,Premises Related Expense,Bldgs : R & M : Day To Day,2001,MONKS CONTRACTORS LIMITED,A0053900,06/04/2023,OPS0332878,350,N,,N,N
Pendle Borough Council,Operational Services,Premises Related Expense,Bldgs : R & M : Day To Day,2001,MONKS CONTRACTORS LIMITED,A0053900,06/04/2023,OPS0332878,500,N,,N,N
Pendle Borough Council,Operational Services,Premises Related Expense,Bldgs : R & M : Day To Day,2001,MONKS CONTRACTORS LIMITED,A0053900,20/04/2023,OPS0333173,850,N,,N,N
Pendle Borough Council,Engineering & Special Projects,Premises Related Expense,Bldgs : R & M : Abnormal,2002,WHATMORE LTD,A0054380,06/04/2023,HED0332789,168.45,N,,N,N
Pendle Borough Council,Engineering & Special Projects,Capital Costs,Capital : Payments,cd14,MR A STRICKLAND,A0054548,06/04/2023,HED0332856,7267.5,N,,N,N
Pendle Borough Council,Engineering & Special Projects,Capital Costs,Capital : Payments,CD14,MR A STRICKLAND,A0054548,06/04/2023,HED0332856,2755,N,,N,N
Pendle Borough Council,Information Services,Premises Related Expense,Bldgs : R & M : Day To Day,2001,CLEARSKIES SOFTWARE LIMITED,A0055720,27/04/2023,ITS0333328,1000,N,,N,N
Pendle Borough Council,Information Services,Premises Related Expense,Bldgs : R & M : Day To Day,2001,CLEARSKIES SOFTWARE LIMITED,A0055720,27/04/2023,ITS0333328,1000,N,,N,N
Pendle Borough Council,Information Services,Premises Related Expense,Bldgs : R & M : Day To Day,2001,CLEARSKIES SOFTWARE LIMITED,A0055720,27/04/2023,ITS0333328,1000,N,,N,N
Pendle Borough Council,Information Services,Premises Related Expense,Grounds : R & M : Day to Day : Routine,2101,CLEARSKIES SOFTWARE LIMITED,A0055720,27/04/2023,ITS0333328,1000,N,,N,N
Pendle Borough Council,Information Services,Premises Related Expense,Grounds : R & M : Day to Day : Routine,2101,CLEARSKIES SOFTWARE LIMITED,A0055720,27/04/2023,ITS0333328,1991.6,N,,N,N
Pendle Borough Council,Information Services,Premises Related Expense,Grounds : R & M : Day to Day : Routine,2101,CLEARSKIES SOFTWARE LIMITED,A0055720,27/04/2023,ITS0333328,1000,N,,N,N
Pendle Borough Council,Operational Services,Indirect Employee Expenses,Emp : Training : General,1217,BEN SHAW TRAINING LIMITED,A0055722,20/04/2023,OPS0333202,1440,N,,N,N
Pendle Borough Council,Financial Services,Supplies and Services,Consultants Fees,4401,L G FUTURES LIMITED,A0056113,06/04/2023,AAS0332804,1945,N,,N,N
Pendle Borough Council,Financial Services,Supplies and Services,Consultants Fees,4401,L G FUTURES LIMITED,A0056113,06/04/2023,AAS0332804,1995,N,,N,N
Pendle Borough Council,Financial Services,Supplies and Services,Consultants Fees,4401,L G FUTURES LIMITED,A0056113,06/04/2023,AAS0332804,2345,N,,N,N
Pendle Borough Council,Parks & Recreation Services,Transport Related Expense,Tprt : Repairs : General,3105,HYDRAIR,A0056976,20/04/2023,PCO0333156,114.93,N,,N,N
Pendle Borough Council,Property Services,Premises Related Expense,Electricity,2203,BRITISH GAS,A0057202,06/04/2023,EST0332900,59.37,N,,N,N
Pendle Borough Council,Operational Services,Transport Related Expense,Tprt : Repairs : General,3105,UNITED UTILITIES,A0059246,06/04/2023,OPS0332834,23.45,N,,N,N
Pendle Borough Council,Operational Services,Transport Related Expense,Tprt : Repairs : General,3105,UNITED UTILITIES,A0059246,06/04/2023,OPS0332834,23.45,N,,N,N
Pendle Borough Council,Engineering & Special Projects,Agency Costs,Lancashire C C,5102,NSL LIMITED,A0059256,20/04/2023,HED0333107,2574,N,,N,N
Pendle Borough Council,Engineering & Special Projects,Supplies and Services,Adverts : Statutory Notice,4702,NATIONAL WORLD PUBLISHING LTD,A0059640,06/04/2023,HED0332781,286.01,N,,N,N
Pendle Borough Council,Engineering & Special Projects,Supplies and Services,Adverts : Statutory Notice,4702,NATIONAL WORLD PUBLISHING LTD,A0059640,20/04/2023,HED0333167,286.01,N,,N,N
Pendle Borough Council,Engineering & Special Projects,Supplies and Services,Adverts : Statutory Notice,4702,NATIONAL WORLD PUBLISHING LTD,A0059640,20/04/2023,HED0333117,312.01,N,,N,N
Pendle Borough Council,Engineering & Special Projects,Supplies and Services,Adverts : Statutory Notice,4702,NATIONAL WORLD PUBLISHING LTD,A0059640,27/04/2023,HED0333347,312.01,N,,N,N
Pendle Borough Council,Engineering & Special Projects,Supplies and Services,Publicity & advertisement,4704,NATIONAL WORLD PUBLISHING LTD,A0059640,20/04/2023,HED0333118,245,N,,N,N
Pendle Borough Council,Engineering & Special Projects,Supplies and Services,Publicity & advertisement,4704,NATIONAL WORLD PUBLISHING LTD,A0059640,27/04/2023,HED0333252,245,N,,N,N
Pendle Borough Council,Engineering & Special Projects,Supplies and Services,Publicity & advertisement,4704,NATIONAL WORLD PUBLISHING LTD,A0059640,17/04/2023,HED0333016,1299.42,N,,N,N
Pendle Borough Council,Engineering & Special Projects,Capital Costs,Capital : Payments,CD14,NATIONAL WORLD PUBLISHING LTD,A0059640,27/04/2023,HED0333346,286.01,N,,N,N
Pendle Borough Council,Engineering & Special Projects,Transfer Payments,Accommodation ,6103,HILL VIEW (PRIVATE) HOTEL,A0059754,06/04/2023,HED0332979,13375,N,,N,N
Pendle Borough Council,Engineering & Special Projects,Transfer Payments,Storage & Homelessness prevention,6104,HILL VIEW (PRIVATE) HOTEL,A0059754,06/04/2023,HED0332980,350,N,,N,N
Pendle Borough Council,Planning & Building Control,Supplies and Services,Grant Funding,4737,NEWGROUND CIC,A0060088,27/04/2023,PBC0333319,6093.08,N,702800,N,N
Pendle Borough Council,Human Resources,Supplies and Services,Seminars etc All Costs,4601,ABC NORTH WEST LTD,A0061417,20/04/2023,PER0333224,69,N,,N,N
Pendle Borough Council,Human Resources,Supplies and Services,Seminars etc All Costs,4601,ABC NORTH WEST LTD,A0061417,20/04/2023,PER0333225,69,N,,N,N
Pendle Borough Council,Human Resources,Supplies and Services,Seminars etc All Costs,4601,ABC NORTH WEST LTD,A0061417,20/04/2023,PER0333226,69,N,,N,N
Pendle Borough Council,Human Resources,Supplies and Services,Seminars etc All Costs,4601,ABC NORTH WEST LTD,A0061417,20/04/2023,PER0333227,69,N,,N,N
Pendle Borough Council,Human Resources,Supplies and Services,Seminars etc All Costs,4601,ABC NORTH WEST LTD,A0061417,20/04/2023,PER0333228,69,N,,N,N
Pendle Borough Council,Human Resources,Supplies and Services,Seminars etc All Costs,4601,ABC NORTH WEST LTD,A0061417,20/04/2023,PER0333229,69,N,,N,N
Pendle Borough Council,Financial Services,,Precept Parish & T Council,0303,LANESHAWBRIDGE PARISH COUNCIL,A0062284,27/04/2023,AAS0333415,11352.43,N,,N,N
Pendle Borough Council,Financial Services,,Precept Parish & T Council,0303,TRAWDEN FOREST PARISH COUNCIL,A0062286,27/04/2023,AAS0333421,25000,N,,N,N
Pendle Borough Council,Engineering & Special Projects,Supplies and Services,Other Expenses,4705,TRAWDEN FOREST PARISH COUNCIL,A0062286,06/04/2023,HED0332808,387.2,N,,N,N
Pendle Borough Council,Engineering & Special Projects,Supplies and Services,Uniforms,4202,REDACT - PERSONAL DATA,A0062864,20/04/2023,HED0333115,2.88,N,,N,N
Pendle Borough Council,Engineering & Special Projects,Supplies and Services,Uniforms,4202,REDACT - PERSONAL DATA,A0062864,20/04/2023,HED0333115,13,N,,N,N
Pendle Borough Council,Engineering & Special Projects,Supplies and Services,Uniforms,4202,REDACT - PERSONAL DATA,A0062864,20/04/2023,HED0333115,19.58,N,,N,N
Pendle Borough Council,Planning & Building Control,Supplies and Services,EFM Materials,4004,NEW MIND INTERNET CONSULTANCY LTD,A0064687,17/04/2023,PBC4006709,-143.33,N,,N,N
Pendle Borough Council,Planning & Building Control,Supplies and Services,EFM Materials,4004,NEW MIND INTERNET CONSULTANCY LTD,A0064687,17/04/2023,PBC0333113,215,N,,N,N
Pendle Borough Council,Planning & Building Control,Supplies and Services,EFM Materials,4004,NEW MIND INTERNET CONSULTANCY LTD,A0064687,17/04/2023,PBC0333114,215,N,,N,N
Pendle Borough Council,Engineering & Special Projects,Supplies and Services,EFM : Office and computer equipment,4002,BUCHANAN COMPUTING LIMITED,A0065956,06/04/2023,HED0332784,494,N,,N,N
Pendle Borough Council,Engineering & Special Projects,Supplies and Services,Meeting Expenses,4610,THE RAINHALL CENTRE,A0066193,17/04/2023,HED0332999,45,N,,N,N
Pendle Borough Council,Financial Services,Supplies and Services,Printing & Stationery,4301,HBINFO LTD,A0066405,20/04/2023,AAS0333255,495,N,,N,N
Pendle Borough Council,Property Services,Premises Related Expense,Bldgs : R & M : Day To Day,2001,SPEAKMAN CONTRACTORS LTD,A0066581,20/04/2023,EST0333239,335.14,N,,N,N
Pendle Borough Council,Property Services,Premises Related Expense,Bldgs : R & M : Day To Day,2001,SPEAKMAN CONTRACTORS LTD,A0066581,20/04/2023,EST0333239,66.7,N,,N,N
Pendle Borough Council,Property Services,Premises Related Expense,Bldgs : R & M : Day To Day,2001,SPEAKMAN CONTRACTORS LTD,A0066581,20/04/2023,EST0333239,10229,N,,N,N
Pendle Borough Council,Property Services,Premises Related Expense,Bldgs : R & M : Day To Day,2001,SPEAKMAN CONTRACTORS LTD,A0066581,20/04/2023,EST0333239,41.9,N,,N,N
Pendle Borough Council,Property Services,Premises Related Expense,Bldgs : R & M : Day To Day,2001,SPEAKMAN CONTRACTORS LTD,A0066581,20/04/2023,EST0333239,76.7,N,,N,N
Pendle Borough Council,Property Services,Premises Related Expense,Bldgs : R & M : Day To Day,2001,SPEAKMAN CONTRACTORS LTD,A0066581,20/04/2023,EST0333239,55.86,N,,N,N
Pendle Borough Council,Property Services,Premises Related Expense,Bldgs : R & M : Day To Day,2001,SPEAKMAN CONTRACTORS LTD,A0066581,20/04/2023,EST0333239,274.09,N,,N,N
Pendle Borough Council,Property Services,Capital Costs,Capital : Payments,CD14,SPEAKMAN CONTRACTORS LTD,A0066581,20/04/2023,EST0333239,9985,N,,N,N
Pendle Borough Council,Property Services,Capital Costs,Capital : Payments,CD14,SPEAKMAN CONTRACTORS LTD,A0066581,20/04/2023,EST0333239,21467,N,,N,N
Pendle Borough Council,Engineering & Special Projects,Premises Related Expense,Grounds : R & M : Day to Day : Routine,2101,LIVESEY BUILDING MAINTENANCE CONTRACTORS,A0066865,17/04/2023,HED0333101,390,N,,N,N
Pendle Borough Council,Engineering & Special Projects,Premises Related Expense,Grounds : R & M : Day to Day : Routine,2101,LIVESEY BUILDING MAINTENANCE CONTRACTORS,A0066865,17/04/2023,HED0333101,910,N,,N,N
Pendle Borough Council,Human Resources,Indirect Employee Expenses,Emp : Medical Expenses,1236,PEOPLE ASSET MANAGEMENT LIMITED,A0067613,20/04/2023,PER0333230,142.5,N,,N,N
Pendle Borough Council,Human Resources,Indirect Employee Expenses,Emp : Medical Expenses,1236,PEOPLE ASSET MANAGEMENT LIMITED,A0067613,27/04/2023,PER0333314,142.5,N,,N,N
Pendle Borough Council,Human Resources,Indirect Employee Expenses,Emp : Medical Expenses,1236,PEOPLE ASSET MANAGEMENT LIMITED,A0067613,20/04/2023,PER0333234,163,N,,N,N
Pendle Borough Council,Operational Services,Transport Related Expense,Tprt : Repairs : General,3105,PROBRUSH T/A NORTHERN MUNICIPAL SPARES LTD,A0068263,27/04/2023,OPS0333323,230.71,N,,N,N
Pendle Borough Council,Operational Services,Transport Related Expense,Tprt : Repairs : General,3105,PROBRUSH T/A NORTHERN MUNICIPAL SPARES LTD,A0068263,27/04/2023,OPS0333323,230.71,N,,N,N
Pendle Borough Council,Operational Services,Transport Related Expense,Tprt : Repairs : General,3105,PROBRUSH T/A NORTHERN MUNICIPAL SPARES LTD,A0068263,27/04/2023,OPS0333323,230.71,N,,N,N
Pendle Borough Council,Operational Services,Transport Related Expense,Tprt : Repairs : General,3105,PROBRUSH T/A NORTHERN MUNICIPAL SPARES LTD,A0068263,27/04/2023,OPS0333323,230.71,N,,N,N
Pendle Borough Council,Operational Services,Transport Related Expense,Tprt : Repairs : General,3105,PROBRUSH T/A NORTHERN MUNICIPAL SPARES LTD,A0068263,27/04/2023,OPS0333323,230.71,N,,N,N
Pendle Borough Council,Operational Services,Transport Related Expense,Tprt : Repairs : General,3105,PROBRUSH T/A NORTHERN MUNICIPAL SPARES LTD,A0068263,27/04/2023,OPS0333323,230.71,N,,N,N
Pendle Borough Council,Engineering & Special Projects,Supplies and Services,Processing Fees,4424,CHIPSIDE LTD,A0068587,20/04/2023,HED0333108,8.55,N,,N,N
Pendle Borough Council,Engineering & Special Projects,Supplies and Services,Processing Fees,4424,CHIPSIDE LTD,A0068587,27/04/2023,HED0333253,200.43,N,,N,N
Pendle Borough Council,Parks & Recreation Services,Premises Related Expense,Grounds : R & M : Day to Day : Routine,2101,M C & M A STEWART HAULAGE,A0068863,17/04/2023,PCO0332992,500,N,,N,N
Pendle Borough Council,Parks & Recreation Services,Premises Related Expense,Grounds : R & M : Day to Day : Routine,2101,M C & M A STEWART HAULAGE,A0068863,17/04/2023,PCO0332990,871.62,N,,N,N
Pendle Borough Council,Parks & Recreation Services,Premises Related Expense,Grounds : R & M : Day to Day : Routine,2101,M C & M A STEWART HAULAGE,A0068863,17/04/2023,PCO0332996,877.75,N,,N,N
Pendle Borough Council,Engineering & Special Projects,Supplies and Services,Other Expenses,4705,ACCENT REGENERATION LIMITED,A0069320,27/04/2023,HED0333313,362.7,N,,N,N
Pendle Borough Council,Engineering & Special Projects,Supplies and Services,Other Expenses,4705,NPTA,A0070536,06/04/2023,HED0332783,333.33,N,,N,N
Pendle Borough Council,Engineering & Special Projects,Capital Costs,Capital : Payments,CD14,R B ASBESTOS CONSULTANTS LIMITED,A0070946,06/04/2023,HED0332895,435,N,,N,N
Pendle Borough Council,Engineering & Special Projects,Supplies and Services,Consultants Fees,4401,LABC,A0072264,06/04/2023,HED0332814,2060.06,N,,N,N
Pendle Borough Council,Operational Services,Supplies and Services,Sub-Contractors,4007,RENTOKIL INITIAL UK LIMITED,A0072816,27/04/2023,OPS0333247,92.84,N,,N,N
Pendle Borough Council,Operational Services,Supplies and Services,Sub-Contractors,4007,RENTOKIL INITIAL UK LIMITED,A0072816,27/04/2023,OPS0333242,268.94,N,,N,N
Pendle Borough Council,Operational Services,Supplies and Services,Sub-Contractors,4007,RENTOKIL INITIAL UK LIMITED,A0072816,27/04/2023,OPS0333247,15.9,N,,N,N
Pendle Borough Council,Operational Services,Supplies and Services,Sub-Contractors,4007,RENTOKIL INITIAL UK LIMITED,A0072816,27/04/2023,OPS0333242,62.02,N,,N,N
Pendle Borough Council,Operational Services,Supplies and Services,Sub-Contractors,4007,RENTOKIL INITIAL UK LIMITED,A0072816,27/04/2023,OPS0333247,83.76,N,,N,N
Pendle Borough Council,Planning & Building Control,,Other Income : Non-VATable,9303,REDACT - PERSONAL DATA,A0075833,20/04/2023,PBC0333236,17.67,N,,N,N
Pendle Borough Council,Property Services,Premises Related Expense,Bldgs : R & M : Day To Day,2001,BURNLEY AND PENDLE ENERGY ASSESSORS LTD,A0077075,27/04/2023,EST0333374,195,N,,N,N
Pendle Borough Council,Engineering & Special Projects,Supplies and Services,Printing & Stationery,4301,THOMSON REUTERS PROFESSIONAL UK LIMITED,A0077400,06/04/2023,HED0332858,343,N,,N,N
Pendle Borough Council,Engineering & Special Projects,Supplies and Services,Printing & Stationery,4301,THOMSON REUTERS PROFESSIONAL UK LIMITED,A0077400,17/04/2023,HED0333000,1099,N,,N,N
Pendle Borough Council,Financial Services,,Precept Parish & T Council,0303,FOULRIDGE PARISH COUNCIL,A0077715,27/04/2023,AAS0333411,8854,N,,N,N
Pendle Borough Council,Engineering & Special Projects,Supplies and Services,Other Expenses,4705,FOULRIDGE PARISH COUNCIL,A0077715,06/04/2023,HED0332809,894.2,N,,N,N
Pendle Borough Council,Parks & Recreation Services,Supplies and Services,Protective Clothing,4201,GROUNDSMAN TOOLS LTD,A0079260,27/04/2023,PCO0333312,78.84,N,,N,N
Pendle Borough Council,Parks & Recreation Services,Supplies and Services,Protective Clothing,4201,GROUNDSMAN TOOLS LTD,A0079260,20/04/2023,PCO0333182,301.9,N,,N,N
Pendle Borough Council,Engineering & Special Projects,Supplies and Services,Consultants Fees,4401,IN-SITU,A0079936,06/04/2023,HED0332854,11384.28,N,,N,N
Pendle Borough Council,Financial Services,,Precept Parish & T Council,0303,GOLDSHAW BOOTH PARISH COUNCIL,A0080533,27/04/2023,AAS0333412,1961.9,N,,N,N
Pendle Borough Council,Financial Services,,Precept Parish & T Council,0303,KELBROOK & SOUGH PARISH COUNCIL,A0081332,27/04/2023,AAS0333414,3812.5,N,,N,N
Pendle Borough Council,Engineering & Special Projects,Supplies and Services,Other Expenses,4705,CHRIST CHURCH COLNE,A0081344,06/04/2023,HED0332812,1022.72,N,,N,N
Pendle Borough Council,Engineering & Special Projects,Supplies and Services,Other Expenses,4705,CALICO ENTERPRISE,A0082574,06/04/2023,HED0332825,337.95,N,,N,N
Pendle Borough Council,Parks & Recreation Services,Transport Related Expense,Diesel Oil,3202,TATE FUEL OILS LIMITED,A0082819,20/04/2023,PCO0333162,2328,N,,N,N
Pendle Borough Council,Operational Services,Transport Related Expense,Diesel Oil,3202,CRAGGS ENERGY LIMITED,A0083617,06/04/2023,OPS0332877,1627.5,N,,N,N
Pendle Borough Council,Operational Services,Transport Related Expense,Diesel Oil,3202,CRAGGS ENERGY LIMITED,A0083617,06/04/2023,OPS0332877,1627.5,N,,N,N
Pendle Borough Council,Operational Services,Transport Related Expense,Diesel Oil,3202,CRAGGS ENERGY LIMITED,A0083617,06/04/2023,OPS0332877,1627.5,N,,N,N
Pendle Borough Council,Operational Services,Transport Related Expense,Diesel Oil,3202,CRAGGS ENERGY LIMITED,A0083617,06/04/2023,OPS0332877,1627.5,N,,N,N
Pendle Borough Council,Financial Services,,Precept Parish & T Council,0303,BLACKO PARISH COUNCIL,A0084321,27/04/2023,AAS0333407,2575.46,N,,N,N
Pendle Borough Council,Financial Services,Supplies and Services,Allpay,4422,ALLPAY LIMITED,A0084372,06/04/2023,AAS0332972,10,N,,N,N
Pendle Borough Council,Financial Services,Supplies and Services,Allpay,4422,ALLPAY LIMITED,A0084372,06/04/2023,AAS0332975,10,N,,N,N
Pendle Borough Council,Financial Services,Supplies and Services,Allpay,4422,ALLPAY LIMITED,A0084372,06/04/2023,AAS0332970,15.05,N,,N,N
Pendle Borough Council,Financial Services,Supplies and Services,Allpay,4422,ALLPAY LIMITED,A0084372,06/04/2023,AAS0332971,17.55,N,,N,N
Pendle Borough Council,Financial Services,Supplies and Services,Allpay,4422,ALLPAY LIMITED,A0084372,06/04/2023,AAS0332974,59.38,N,,N,N
Pendle Borough Council,Financial Services,Supplies and Services,Allpay,4422,ALLPAY LIMITED,A0084372,06/04/2023,AAS0332973,1058.8,N,,N,N
Pendle Borough Council,Engineering & Special Projects,,Housing Impts/Cap Repairs,0104,ELITE PLUMBING,A0084584,17/04/2023,HED0333008,5140,N,,N,N
Pendle Borough Council,Financial Services,Premises Related Expense,Rates,2401,EARBY & SALTERFORTH INTERNAL DRAINAGE BOARD,A0085348,06/04/2023,AAS0332805,9625,N,,N,N
Pendle Borough Council,Engineering & Special Projects,Premises Related Expense,Grounds : R & M : Day to Day : Routine,2101,KEVIN WILKINSON LANDSCAPES LTD,A0085660,06/04/2023,HED0332897,200,N,,N,N
Pendle Borough Council,Engineering & Special Projects,Premises Related Expense,Grounds : R & M : Day to Day : Routine,2101,MARCHBRIDGE BUILDERS LIMITED,A0087284,27/04/2023,HED0333362,3648.04,N,,N,N
Pendle Borough Council,Engineering & Special Projects,Capital Costs,Capital : Payments,CD14,MARCHBRIDGE BUILDERS LIMITED,A0087284,17/04/2023,HED0333099,2684,N,,N,N
Pendle Borough Council,Engineering & Special Projects,Capital Costs,Capital : Payments,CD14,MARCHBRIDGE BUILDERS LIMITED,A0087284,27/04/2023,HED0333361,16303.28,N,,N,N
Pendle Borough Council,Engineering & Special Projects,Supplies and Services,Reference Books Acts,4304,PLANNING JUNGLE LIMITED,A0087974,20/04/2023,HED0333214,300,N,,N,N
Pendle Borough Council,Engineering & Special Projects,Supplies and Services,Publicity & advertisement,4704,PRINTDESIGNS LIMITED,A0088150,06/04/2023,HED0332787,355,N,,N,N
Pendle Borough Council,Financial Services,Premises Related Expense,Electricity,2203,EDF ENERGY,A0088932,05/04/2023,AAS0333473,40.05,N,,N,N
Pendle Borough Council,Financial Services,Premises Related Expense,Electricity,2203,EDF ENERGY,A0088932,05/04/2023,AAS0333473,67.44,N,,N,N
Pendle Borough Council,Financial Services,Premises Related Expense,Electricity,2203,EDF ENERGY,A0088932,05/04/2023,AAS0333473,36.94,N,,N,N
Pendle Borough Council,Financial Services,Premises Related Expense,Electricity,2203,EDF ENERGY,A0088932,05/04/2023,AAS0333473,178.83,N,,N,N
Pendle Borough Council,Financial Services,Premises Related Expense,Electricity,2203,EDF ENERGY,A0088932,05/04/2023,AAS0333473,55.73,N,,N,N
Pendle Borough Council,Financial Services,Premises Related Expense,Electricity,2203,EDF ENERGY,A0088932,05/04/2023,AAS0333473,360.75,N,,N,N
Pendle Borough Council,Financial Services,Premises Related Expense,Electricity,2203,EDF ENERGY,A0088932,05/04/2023,AAS0333473,68.91,N,,N,N
Pendle Borough Council,Financial Services,Premises Related Expense,Electricity,2203,EDF ENERGY,A0088932,05/04/2023,AAS0333473,181.72,N,,N,N
Pendle Borough Council,Financial Services,Premises Related Expense,Electricity,2203,EDF ENERGY,A0088932,05/04/2023,AAS0333473,25.1,N,,N,N
Pendle Borough Council,Financial Services,Premises Related Expense,Electricity,2203,EDF ENERGY,A0088932,05/04/2023,AAS0333473,299.12,N,,N,N
Pendle Borough Council,Financial Services,Premises Related Expense,Electricity,2203,EDF ENERGY,A0088932,05/04/2023,AAS0333473,42.5,N,,N,N
Pendle Borough Council,Financial Services,Premises Related Expense,Electricity,2203,EDF ENERGY,A0088932,05/04/2023,AAS0333473,29.66,N,,N,N
Pendle Borough Council,Financial Services,Premises Related Expense,Electricity,2203,EDF ENERGY,A0088932,05/04/2023,AAS0333473,26.01,N,,N,N
Pendle Borough Council,Financial Services,Premises Related Expense,Electricity,2203,EDF ENERGY,A0088932,05/04/2023,AAS0333473,26.33,N,,N,N
Pendle Borough Council,Financial Services,Premises Related Expense,Electricity,2203,EDF ENERGY,A0088932,05/04/2023,AAS0333473,68.59,N,,N,N
Pendle Borough Council,Financial Services,Premises Related Expense,Electricity,2203,EDF ENERGY,A0088932,05/04/2023,AAS0333473,132.79,N,,N,N
Pendle Borough Council,Financial Services,Premises Related Expense,Electricity,2203,EDF ENERGY,A0088932,05/04/2023,AAS0333473,230.07,N,,N,N
Pendle Borough Council,Financial Services,Premises Related Expense,Electricity,2203,EDF ENERGY,A0088932,05/04/2023,AAS0333473,190.57,N,,N,N
Pendle Borough Council,Financial Services,Premises Related Expense,Electricity,2203,EDF ENERGY,A0088932,05/04/2023,AAS0333473,495.33,N,,N,N
Pendle Borough Council,Financial Services,Premises Related Expense,Electricity,2203,EDF ENERGY,A0088932,05/04/2023,AAS0333473,30.48,N,,N,N
Pendle Borough Council,Financial Services,Premises Related Expense,Electricity,2203,EDF ENERGY,A0088932,05/04/2023,AAS0333473,224.15,N,,N,N
Pendle Borough Council,Financial Services,Premises Related Expense,Electricity,2203,EDF ENERGY,A0088932,05/04/2023,AAS0333473,895.02,N,,N,N
Pendle Borough Council,Financial Services,Premises Related Expense,Electricity,2203,EDF ENERGY,A0088932,05/04/2023,AAS0333473,1221.7,N,,N,N
Pendle Borough Council,Financial Services,Supplies and Services,Other Expenses,4705,EDF ENERGY,A0088932,05/04/2023,AAS0333473,20.23,N,,N,N
Pendle Borough Council,Financial Services,Supplies and Services,Other Expenses,4705,EDF ENERGY,A0088932,05/04/2023,AAS0333473,20.52,N,,N,N
Pendle Borough Council,Parks & Recreation Services,Premises Related Expense,Bldgs : R & M : Day To Day,2001,THORLEY SMITH LIMITED,A0089939,20/04/2023,PCO0333180,311,N,,N,N
Pendle Borough Council,Engineering & Special Projects,,Paid in the Year,PD03,O`CALLAGHAN LIMITED,A0090052,17/04/2023,HED0333032,18531.93,N,,N,N
Pendle Borough Council,Engineering & Special Projects,,Paid in the Year,PD03,O`CALLAGHAN LIMITED,A0090052,17/04/2023,HED0333103,68319.12,N,,N,N
Pendle Borough Council,Engineering & Special Projects,Supplies and Services,Publicity & advertisement,4704,WE LOVE CREATIVE LIMITED,A0090098,06/04/2023,HED0332768,3830,N,,N,N
Pendle Borough Council,Engineering & Special Projects,Supplies and Services,Publicity & advertisement,4704,WE LOVE CREATIVE LIMITED,A0090098,17/04/2023,HED0333002,400,N,,N,N
Pendle Borough Council,Engineering & Special Projects,Supplies and Services,Children`s holiday activities,4716,SMARTYPANTS EXCLUSIVE CHILDCARE LTD,A0090111,27/04/2023,HED0333358,3340.8,N,,N,N
Pendle Borough Council,Financial Services,Supplies and Services,Consultants Fees,4401,ACS LTD,A0090312,06/04/2023,AAS0332795,900,N,,N,N
Pendle Borough Council,Financial Services,,Precept Parish & T Council,0303,BARNOLDSWICK TOWN COUNCIL,A0090352,27/04/2023,AAS0333405,73750,N,,N,N
Pendle Borough Council,Engineering & Special Projects,Premises Related Expense,Grounds : R & M : Day to Day : Routine,2101,GREEN CLEAN RESTORATION,A0090368,27/04/2023,HED0333366,4125,N,,N,N
Pendle Borough Council,Engineering & Special Projects,Premises Related Expense,Grounds : R & M : Day to Day : Routine,2101,GREEN CLEAN RESTORATION,A0090368,27/04/2023,HED0333367,416.67,N,,N,N
Pendle Borough Council,Operational Services,Premises Related Expense,Water & Sewerage,2501,AQUAM WATER SERVICES LIMITED,A0090390,06/04/2023,OPS0332880,800,N,,N,N
Pendle Borough Council,Engineering & Special Projects,Supplies and Services,Publicity & advertisement,4704,FONEMEDIA LIMITED,A0090401,06/04/2023,HED0332767,2000,N,,N,N
Pendle Borough Council,Financial Services,,Precept Parish & T Council,0303,SALTERFORTH PARISH COUNCIL,A0090441,27/04/2023,AAS0333420,5250,N,,N,N
Pendle Borough Council,Financial Services,,Precept Parish & T Council,0303,HIGHAM WITH WEST CLOSE BOOTH PC,A0090493,27/04/2023,AAS0333413,4987.5,N,,N,N
Pendle Borough Council,Information Services,Supplies and Services,Consultants Fees,4401,IDOX SOFTWARE LIMITED,A0090564,27/04/2023,ITS0333325,1025,N,,N,N
Pendle Borough Council,Engineering & Special Projects,Supplies and Services,Miscellaneous : Other,4707,IDOX SOFTWARE LIMITED,A0090564,06/04/2023,HED0332857,962.78,N,,N,N
Pendle Borough Council,Parks & Recreation Services,Premises Related Expense,Grounds : R & M : Day to Day : Routine,2101,TREETOPS DE-VEGETATION SERVICES LIMITED,A0090701,20/04/2023,PCO0333175,2500,N,,N,N
Pendle Borough Council,Parks & Recreation Services,Premises Related Expense,Grounds : R & M : Day to Day : Routine,2101,TREETOPS DE-VEGETATION SERVICES LIMITED,A0090701,17/04/2023,PCO0332989,8000,N,,N,N
Pendle Borough Council,Parks & Recreation Services,Premises Related Expense,Grounds : R & M : Day to Day : Routine,2101,TREETOPS DE-VEGETATION SERVICES LIMITED,A0090701,20/04/2023,PCO0333175,1200,N,,N,N
Pendle Borough Council,Parks & Recreation Services,Premises Related Expense,Grounds : R & M : Day to Day : Routine,2101,TREETOPS DE-VEGETATION SERVICES LIMITED,A0090701,17/04/2023,PCO0332989,2000,N,,N,N
Pendle Borough Council,Revenues Services,Supplies and Services,Consultants Fees,4401,PS&P LTD,A0090720,17/04/2023,TRE0333112,31.85,N,,N,N
Pendle Borough Council,Revenues Services,Supplies and Services,DSS Collection Fee,4414,PS&P LTD,A0090720,20/04/2023,TRE0333220,24,N,,N,N
Pendle Borough Council,Property Services,Premises Related Expense,Grounds : R & M : Day to Day : Routine,2101,H2O FLOWTECH LIMITED,A0090845,20/04/2023,EST0333240,252.48,N,,N,N
Pendle Borough Council,Property Services,Capital Costs,Capital : Payments,CD14,H2O FLOWTECH LIMITED,A0090845,06/04/2023,EST0332901,305.2,N,,N,N
Pendle Borough Council,Parks & Recreation Services,Transport Related Expense,Tprt : Repairs : General,3105,SUPER AUTO SAVER,A0090951,17/04/2023,PCO0332995,5,N,,N,N
Pendle Borough Council,Engineering & Special Projects,Capital Costs,Capital : Environmental Surveys etc,CD08,SITE SURVEYING SERVICES LIMITED,A0090952,17/04/2023,HED0333102,1220,N,,N,N
Pendle Borough Council,Financial Services,Support Services,District Audit Fees,7202,CABINET OFFICE,A0091137,06/04/2023,AAS0332984,2535,N,,N,N
Pendle Borough Council,Human Resources,Indirect Employee Expenses,Emp : Medical Expenses,1236,HEALTH ASSURED LIMITED,A0091143,27/04/2023,PER0333315,3072.16,N,,N,N
Pendle Borough Council,Financial Services,,Precept Parish & T Council,0303,BRIERFIELD TOWN COUNCIL - PRECEPTS ONLY,A0091165,27/04/2023,AAS0333408,46035,N,,N,N
Pendle Borough Council,Parks & Recreation Services,Premises Related Expense,Grounds : R & M : Day to Day : Routine,2101,MARTINS COUNTRYSIDE CONTRACTING LIMITED,A0091415,27/04/2023,PCO0333303,451.72,N,,N,N
Pendle Borough Council,Information Services,Supplies and Services,EFM : Office and computer equipment,4002,STORM TECHNOLOGIES LIMITED,A0091493,27/04/2023,ITS0333327,61,N,,N,N
Pendle Borough Council,Planning & Building Control,,Fees Income : Non-VATable,9302,PORTALPLANQUEST LIMITED,A0091554,06/04/2023,PBC0332823,96,N,,N,N
Pendle Borough Council,Planning & Building Control,,Fees Income : Non-VATable,9302,PORTALPLANQUEST LIMITED,A0091554,20/04/2023,PBC0333222,206,N,,N,N
Pendle Borough Council,Planning & Building Control,,Fees Income : Non-VATable,9302,PORTALPLANQUEST LIMITED,A0091554,06/04/2023,PBC0332824,234,N,,N,N
Pendle Borough Council,Planning & Building Control,,Fees Income : Non-VATable,9302,PORTALPLANQUEST LIMITED,A0091554,27/04/2023,PBC0333341,234,N,,N,N
Pendle Borough Council,Parks & Recreation Services,Agency Staff,Emp : Basic Wages,1001,NW RECRUITMENT SERVICES LIMITED,A0091588,17/04/2023,PCO0332994,868.84,N,,N,N
Pendle Borough Council,Parks & Recreation Services,Agency Staff,Emp : Basic Wages,1001,NW RECRUITMENT SERVICES LIMITED,A0091588,17/04/2023,PCO0332993,1468.04,N,,N,N
Pendle Borough Council,Parks & Recreation Services,Agency Staff,Emp : Basic Wages,1001,NW RECRUITMENT SERVICES LIMITED,A0091588,17/04/2023,PCO0332991,1625.33,N,,N,N
Pendle Borough Council,Parks & Recreation Services,Agency Staff,Emp : Basic Wages,1001,NW RECRUITMENT SERVICES LIMITED,A0091588,27/04/2023,PCO0333310,2526.48,N,,N,N
Pendle Borough Council,Parks & Recreation Services,Agency Staff,Emp : Basic Wages,1001,NW RECRUITMENT SERVICES LIMITED,A0091588,20/04/2023,PCO0333163,2668,N,,N,N
Pendle Borough Council,Parks & Recreation Services,Agency Staff,Emp : Agency Wages,1004,NW RECRUITMENT SERVICES LIMITED,A0091588,20/04/2023,PCO0333153,178.73,N,,N,N
Pendle Borough Council,Operational Services,Agency Staff,Emp : Agency Wages,1004,NW RECRUITMENT SERVICES LIMITED,A0091588,27/04/2023,OPS0333340,3678.95,N,,N,N
Pendle Borough Council,Operational Services,Agency Staff,Emp : Agency Wages,1004,NW RECRUITMENT SERVICES LIMITED,A0091588,27/04/2023,OPS0333339,3868.81,N,,N,N
Pendle Borough Council,Operational Services,Agency Staff,Emp : Agency Wages,1004,NW RECRUITMENT SERVICES LIMITED,A0091588,27/04/2023,OPS0333338,4057.08,N,,N,N
Pendle Borough Council,Operational Services,Agency Staff,Emp : Agency Wages,1004,NW RECRUITMENT SERVICES LIMITED,A0091588,27/04/2023,OPS0333342,5699.29,N,,N,N
Pendle Borough Council,Operational Services,Agency Staff,Emp : Agency Wages,1004,NW RECRUITMENT SERVICES LIMITED,A0091588,27/04/2023,OPS0333338,1165,N,,N,N
Pendle Borough Council,Operational Services,Agency Staff,Emp : Agency Wages,1004,NW RECRUITMENT SERVICES LIMITED,A0091588,27/04/2023,OPS0333339,1271.23,N,,N,N
Pendle Borough Council,Operational Services,Agency Staff,Emp : Agency Wages,1004,NW RECRUITMENT SERVICES LIMITED,A0091588,27/04/2023,OPS0333340,2484.24,N,,N,N
Pendle Borough Council,Operational Services,Agency Staff,Emp : Agency Wages,1004,NW RECRUITMENT SERVICES LIMITED,A0091588,27/04/2023,OPS0333342,2606.43,N,,N,N
Pendle Borough Council,Operational Services,Agency Staff,Emp : Agency Wages,1004,NW RECRUITMENT SERVICES LIMITED,A0091588,27/04/2023,OPS0333342,1048.58,N,,N,N
Pendle Borough Council,Operational Services,Agency Staff,Emp : Agency Wages,1004,NW RECRUITMENT SERVICES LIMITED,A0091588,27/04/2023,OPS0333338,1185.21,N,,N,N
Pendle Borough Council,Operational Services,Agency Staff,Emp : Agency Wages,1004,NW RECRUITMENT SERVICES LIMITED,A0091588,27/04/2023,OPS0333339,1558.77,N,,N,N
Pendle Borough Council,Operational Services,Agency Staff,Emp : Agency Wages,1004,NW RECRUITMENT SERVICES LIMITED,A0091588,27/04/2023,OPS0333340,1805.83,N,,N,N
Pendle Borough Council,Parks & Recreation Services,Supplies and Services,EFM : Other Equipment,4003,NW RECRUITMENT SERVICES LIMITED,A0091588,17/04/2023,PCO0332994,116.09,N,,N,N
Pendle Borough Council,Parks & Recreation Services,Supplies and Services,EFM : Other Equipment,4003,NW RECRUITMENT SERVICES LIMITED,A0091588,27/04/2023,PCO0333310,340.8,N,,N,N
Pendle Borough Council,Parks & Recreation Services,Supplies and Services,EFM : Other Equipment,4003,NW RECRUITMENT SERVICES LIMITED,A0091588,17/04/2023,PCO0332991,531.79,N,,N,N
Pendle Borough Council,Parks & Recreation Services,Supplies and Services,EFM : Other Equipment,4003,NW RECRUITMENT SERVICES LIMITED,A0091588,17/04/2023,PCO0332993,531.79,N,,N,N
Pendle Borough Council,Operational Services,Transport Related Expense,Tprt : Repairs : General,3105,GO PLANT FLEET SERVICES LIMITED,A0091600,17/04/2023,OPS0333069,42.04,N,,N,N
Pendle Borough Council,Operational Services,Transport Related Expense,Tprt : Repairs : General,3105,GO PLANT FLEET SERVICES LIMITED,A0091600,17/04/2023,OPS0333075,101,N,,N,N
Pendle Borough Council,Operational Services,Transport Related Expense,Tprt : Repairs : General,3105,GO PLANT FLEET SERVICES LIMITED,A0091600,20/04/2023,OPS0333204,361.48,N,,N,N
Pendle Borough Council,Operational Services,Transport Related Expense,Tprt : Repairs : General,3105,GO PLANT FLEET SERVICES LIMITED,A0091600,17/04/2023,OPS0333074,978.99,N,,N,N
Pendle Borough Council,Operational Services,Transport Related Expense,Tprt : Repairs : General,3105,GO PLANT FLEET SERVICES LIMITED,A0091600,17/04/2023,OPS0333081,244.48,N,,N,N
Pendle Borough Council,Operational Services,Transport Related Expense,Tprt : Repairs : General,3105,GO PLANT FLEET SERVICES LIMITED,A0091600,17/04/2023,OPS0333077,969.64,N,,N,N
Pendle Borough Council,Operational Services,Transport Related Expense,Tprt : Repairs : General,3105,GO PLANT FLEET SERVICES LIMITED,A0091600,17/04/2023,OPS0333066,386.3,N,,N,N
Pendle Borough Council,Operational Services,Transport Related Expense,Tprt : Repairs : General,3105,GO PLANT FLEET SERVICES LIMITED,A0091600,17/04/2023,OPS0333068,52.29,N,,N,N
Pendle Borough Council,Operational Services,Transport Related Expense,Tprt : Repairs : General,3105,GO PLANT FLEET SERVICES LIMITED,A0091600,17/04/2023,OPS0333092,84.07,N,,N,N
Pendle Borough Council,Operational Services,Transport Related Expense,Tprt : Repairs : General,3105,GO PLANT FLEET SERVICES LIMITED,A0091600,20/04/2023,OPS0333205,242.26,N,,N,N
Pendle Borough Council,Operational Services,Transport Related Expense,Tprt : Repairs : General,3105,GO PLANT FLEET SERVICES LIMITED,A0091600,20/04/2023,OPS0333206,71.65,N,,N,N
Pendle Borough Council,Operational Services,Transport Related Expense,Tprt : Repairs : General,3105,GO PLANT FLEET SERVICES LIMITED,A0091600,17/04/2023,OPS0333078,101.91,N,,N,N
Pendle Borough Council,Operational Services,Transport Related Expense,Tprt : Repairs : General,3105,GO PLANT FLEET SERVICES LIMITED,A0091600,17/04/2023,OPS0333084,337.48,N,,N,N
Pendle Borough Council,Operational Services,Transport Related Expense,Tprt : Repairs : General,3105,GO PLANT FLEET SERVICES LIMITED,A0091600,17/04/2023,OPS0333073,54.85,N,,N,N
Pendle Borough Council,Operational Services,Transport Related Expense,Tprt : Repairs : General,3105,GO PLANT FLEET SERVICES LIMITED,A0091600,17/04/2023,OPS0333083,192.03,N,,N,N
Pendle Borough Council,Operational Services,Transport Related Expense,Tprt : Repairs : General,3105,GO PLANT FLEET SERVICES LIMITED,A0091600,17/04/2023,OPS0333070,95.41,N,,N,N
Pendle Borough Council,Operational Services,Transport Related Expense,Tprt : Repairs : General,3105,GO PLANT FLEET SERVICES LIMITED,A0091600,20/04/2023,OPS0333207,78.15,N,,N,N
Pendle Borough Council,Operational Services,Transport Related Expense,Tprt : Repairs : General,3105,GO PLANT FLEET SERVICES LIMITED,A0091600,17/04/2023,OPS0333072,202.01,N,,N,N
Pendle Borough Council,Operational Services,Transport Related Expense,Tprt : Repairs : General,3105,GO PLANT FLEET SERVICES LIMITED,A0091600,20/04/2023,OPS0333209,420,N,,N,N
Pendle Borough Council,Operational Services,Transport Related Expense,Tprt : Repairs : General,3105,GO PLANT FLEET SERVICES LIMITED,A0091600,17/04/2023,OPS0333086,223.55,N,,N,N
Pendle Borough Council,Operational Services,Transport Related Expense,Tprt : Repairs : General,3105,GO PLANT FLEET SERVICES LIMITED,A0091600,17/04/2023,OPS0333090,123.04,N,,N,N
Pendle Borough Council,Operational Services,Transport Related Expense,Tyres,3204,GO PLANT FLEET SERVICES LIMITED,A0091600,17/04/2023,OPS0333067,371.84,N,,N,N
Pendle Borough Council,Operational Services,Transport Related Expense,Tyres,3204,GO PLANT FLEET SERVICES LIMITED,A0091600,20/04/2023,OPS0333206,567.49,N,,N,N
Pendle Borough Council,Operational Services,Transport Related Expense,Tyres,3204,GO PLANT FLEET SERVICES LIMITED,A0091600,17/04/2023,OPS0333094,28.73,N,,N,N
Pendle Borough Council,Operational Services,Transport Related Expense,Tyres,3204,GO PLANT FLEET SERVICES LIMITED,A0091600,17/04/2023,OPS0333093,108.31,N,,N,N
Pendle Borough Council,Operational Services,Transport Related Expense,Tyres,3204,GO PLANT FLEET SERVICES LIMITED,A0091600,17/04/2023,OPS0333095,28.73,N,,N,N
Pendle Borough Council,Operational Services,Transport Related Expense,Tyres,3204,GO PLANT FLEET SERVICES LIMITED,A0091600,17/04/2023,OPS0333078,28.73,N,,N,N
Pendle Borough Council,Operational Services,Transport Related Expense,Tyres,3204,GO PLANT FLEET SERVICES LIMITED,A0091600,17/04/2023,OPS0333080,145.98,N,,N,N
Pendle Borough Council,Operational Services,Transport Related Expense,Tyres,3204,GO PLANT FLEET SERVICES LIMITED,A0091600,17/04/2023,OPS0333076,28.73,N,,N,N
Pendle Borough Council,Operational Services,Transport Related Expense,Tyres,3204,GO PLANT FLEET SERVICES LIMITED,A0091600,17/04/2023,OPS0333079,126.18,N,,N,N
Pendle Borough Council,Operational Services,Transport Related Expense,Tyres,3204,GO PLANT FLEET SERVICES LIMITED,A0091600,17/04/2023,OPS0333065,28.73,N,,N,N
Pendle Borough Council,Operational Services,Transport Related Expense,Tyres,3204,GO PLANT FLEET SERVICES LIMITED,A0091600,17/04/2023,OPS0333085,46.43,N,,N,N
Pendle Borough Council,Operational Services,Transport Related Expense,Tyres,3204,GO PLANT FLEET SERVICES LIMITED,A0091600,17/04/2023,OPS0333071,152.11,N,,N,N
Pendle Borough Council,Operational Services,Transport Related Expense,Tyres,3204,GO PLANT FLEET SERVICES LIMITED,A0091600,17/04/2023,OPS0333089,36.18,N,,N,N
Pendle Borough Council,Operational Services,Transport Related Expense,Tyres,3204,GO PLANT FLEET SERVICES LIMITED,A0091600,17/04/2023,OPS0333082,112.03,N,,N,N
Pendle Borough Council,Operational Services,Transport Related Expense,Tyres,3204,GO PLANT FLEET SERVICES LIMITED,A0091600,17/04/2023,OPS0333087,123.97,N,,N,N
Pendle Borough Council,Operational Services,Transport Related Expense,Tprt : Annual Hire Charge,3601,GO PLANT FLEET SERVICES LIMITED,A0091600,17/04/2023,OPS0333064,460,N,,N,N
Pendle Borough Council,Operational Services,Transport Related Expense,Tprt : Annual Hire Charge,3601,GO PLANT FLEET SERVICES LIMITED,A0091600,27/04/2023,OPS0333301,3540.62,N,,N,N
Pendle Borough Council,Operational Services,Transport Related Expense,Tprt : Annual Hire Charge,3601,GO PLANT FLEET SERVICES LIMITED,A0091600,27/04/2023,OPS0333301,3540.62,N,,N,N
Pendle Borough Council,Operational Services,Transport Related Expense,Tprt : Annual Hire Charge,3601,GO PLANT FLEET SERVICES LIMITED,A0091600,27/04/2023,OPS0333301,3540.62,N,,N,N
Pendle Borough Council,Operational Services,Transport Related Expense,Tprt : Annual Hire Charge,3601,GO PLANT FLEET SERVICES LIMITED,A0091600,27/04/2023,OPS0333301,3540.62,N,,N,N
Pendle Borough Council,Operational Services,Transport Related Expense,Tprt : Annual Hire Charge,3601,GO PLANT FLEET SERVICES LIMITED,A0091600,27/04/2023,OPS0333301,3540.62,N,,N,N
Pendle Borough Council,Operational Services,Transport Related Expense,Tprt : Annual Hire Charge,3601,GO PLANT FLEET SERVICES LIMITED,A0091600,27/04/2023,OPS0333301,3344.64,N,,N,N
Pendle Borough Council,Operational Services,Transport Related Expense,Tprt : Annual Hire Charge,3601,GO PLANT FLEET SERVICES LIMITED,A0091600,17/04/2023,OPS0333063,200,N,,N,N
Pendle Borough Council,Operational Services,Transport Related Expense,Tprt : Annual Hire Charge,3601,GO PLANT FLEET SERVICES LIMITED,A0091600,27/04/2023,OPS0333301,3540.62,N,,N,N
Pendle Borough Council,Operational Services,Transport Related Expense,Tprt : Annual Hire Charge,3601,GO PLANT FLEET SERVICES LIMITED,A0091600,27/04/2023,OPS0333301,3540.62,N,,N,N
Pendle Borough Council,Operational Services,Transport Related Expense,Tprt : Annual Hire Charge,3601,GO PLANT FLEET SERVICES LIMITED,A0091600,27/04/2023,OPS0333301,3549.74,N,,N,N
Pendle Borough Council,Operational Services,Transport Related Expense,Tprt : Annual Hire Charge,3601,GO PLANT FLEET SERVICES LIMITED,A0091600,27/04/2023,OPS0333301,3549.74,N,,N,N
Pendle Borough Council,Operational Services,Transport Related Expense,Tprt : Annual Hire Charge,3601,GO PLANT FLEET SERVICES LIMITED,A0091600,27/04/2023,OPS0333301,3549.74,N,,N,N
Pendle Borough Council,Operational Services,Transport Related Expense,Tprt : Annual Hire Charge,3601,GO PLANT FLEET SERVICES LIMITED,A0091600,27/04/2023,OPS0333301,3497.07,N,,N,N
Pendle Borough Council,Operational Services,Transport Related Expense,Tprt : Annual Hire Charge,3601,GO PLANT FLEET SERVICES LIMITED,A0091600,27/04/2023,OPS0333301,3393,N,,N,N
Pendle Borough Council,Operational Services,Transport Related Expense,Tprt : Annual Hire Charge,3601,GO PLANT FLEET SERVICES LIMITED,A0091600,27/04/2023,OPS0333301,2654.17,N,,N,N
Pendle Borough Council,Operational Services,Transport Related Expense,Tprt : Annual Hire Charge,3601,GO PLANT FLEET SERVICES LIMITED,A0091600,27/04/2023,OPS0333301,1981.53,N,,N,N
Pendle Borough Council,Operational Services,Transport Related Expense,Tprt : Annual Hire Charge,3601,GO PLANT FLEET SERVICES LIMITED,A0091600,27/04/2023,OPS0333301,1981.53,N,,N,N
Pendle Borough Council,Operational Services,Transport Related Expense,Tprt : Annual Hire Charge,3601,GO PLANT FLEET SERVICES LIMITED,A0091600,27/04/2023,OPS0333301,1981.53,N,,N,N
Pendle Borough Council,Operational Services,Transport Related Expense,Tprt : Annual Hire Charge,3601,GO PLANT FLEET SERVICES LIMITED,A0091600,27/04/2023,OPS0333301,1981.53,N,,N,N
Pendle Borough Council,Operational Services,Transport Related Expense,Tprt : Annual Hire Charge,3601,GO PLANT FLEET SERVICES LIMITED,A0091600,27/04/2023,OPS0333301,1981.53,N,,N,N
Pendle Borough Council,Operational Services,Transport Related Expense,Tprt : Annual Hire Charge,3601,GO PLANT FLEET SERVICES LIMITED,A0091600,20/04/2023,OPS4006711,-872.3,N,,N,N
Pendle Borough Council,Operational Services,Transport Related Expense,Tprt : Annual Hire Charge,3601,GO PLANT FLEET SERVICES LIMITED,A0091600,20/04/2023,OPS0333211,206.18,N,,N,N
Pendle Borough Council,Operational Services,Transport Related Expense,Tprt : Annual Hire Charge,3601,GO PLANT FLEET SERVICES LIMITED,A0091600,27/04/2023,OPS0333301,509.54,N,,N,N
Pendle Borough Council,Operational Services,Transport Related Expense,Tprt : Annual Hire Charge,3601,GO PLANT FLEET SERVICES LIMITED,A0091600,20/04/2023,OPS0333213,2854.8,N,,N,N
Pendle Borough Council,Operational Services,Transport Related Expense,Tprt : Annual Hire Charge,3601,GO PLANT FLEET SERVICES LIMITED,A0091600,17/04/2023,OPS4006708,-885.67,N,,N,N
Pendle Borough Council,Operational Services,Transport Related Expense,Tprt : Annual Hire Charge,3601,GO PLANT FLEET SERVICES LIMITED,A0091600,17/04/2023,OPS0332838,30,N,,N,N
Pendle Borough Council,Operational Services,Transport Related Expense,Tprt : Annual Hire Charge,3601,GO PLANT FLEET SERVICES LIMITED,A0091600,20/04/2023,OPS0333213,130,N,,N,N
Pendle Borough Council,Operational Services,Transport Related Expense,Tprt : Annual Hire Charge,3601,GO PLANT FLEET SERVICES LIMITED,A0091600,27/04/2023,OPS0333301,598.81,N,,N,N
Pendle Borough Council,Operational Services,Transport Related Expense,Tprt : Annual Hire Charge,3601,GO PLANT FLEET SERVICES LIMITED,A0091600,27/04/2023,OPS0333301,650,N,,N,N
Pendle Borough Council,Operational Services,Transport Related Expense,Tprt : Annual Hire Charge,3601,GO PLANT FLEET SERVICES LIMITED,A0091600,27/04/2023,OPS0333301,598.81,N,,N,N
Pendle Borough Council,Operational Services,Transport Related Expense,Tprt : Annual Hire Charge,3601,GO PLANT FLEET SERVICES LIMITED,A0091600,27/04/2023,OPS0333301,598.81,N,,N,N
Pendle Borough Council,Operational Services,Transport Related Expense,Tprt : Annual Hire Charge,3601,GO PLANT FLEET SERVICES LIMITED,A0091600,27/04/2023,OPS0333301,650,N,,N,N
Pendle Borough Council,Operational Services,Transport Related Expense,Tprt : Annual Hire Charge,3601,GO PLANT FLEET SERVICES LIMITED,A0091600,27/04/2023,OPS0333301,598.81,N,,N,N
Pendle Borough Council,Operational Services,Transport Related Expense,Tprt : Annual Hire Charge,3601,GO PLANT FLEET SERVICES LIMITED,A0091600,27/04/2023,OPS0333301,239.53,N,,N,N
Pendle Borough Council,Operational Services,Transport Related Expense,Tprt : Annual Hire Charge,3601,GO PLANT FLEET SERVICES LIMITED,A0091600,27/04/2023,OPS0333301,239.53,N,,N,N
Pendle Borough Council,Operational Services,Transport Related Expense,Tprt : Annual Hire Charge,3601,GO PLANT FLEET SERVICES LIMITED,A0091600,27/04/2023,OPS0333301,239.53,N,,N,N
Pendle Borough Council,Operational Services,Transport Related Expense,Tprt : Annual Hire Charge,3601,GO PLANT FLEET SERVICES LIMITED,A0091600,27/04/2023,OPS0333301,239.53,N,,N,N
Pendle Borough Council,Operational Services,Transport Related Expense,Tprt : Annual Hire Charge,3601,GO PLANT FLEET SERVICES LIMITED,A0091600,27/04/2023,OPS0333301,239.53,N,,N,N
Pendle Borough Council,Operational Services,Transport Related Expense,Tprt : Annual Hire Charge,3601,GO PLANT FLEET SERVICES LIMITED,A0091600,27/04/2023,OPS0333301,239.53,N,,N,N
Pendle Borough Council,Operational Services,Transport Related Expense,Tprt : Annual Hire Charge,3601,GO PLANT FLEET SERVICES LIMITED,A0091600,27/04/2023,OPS0333301,239.53,N,,N,N
Pendle Borough Council,Operational Services,Transport Related Expense,Tprt : Annual Hire Charge,3601,GO PLANT FLEET SERVICES LIMITED,A0091600,27/04/2023,OPS0333301,339.69,N,,N,N
Pendle Borough Council,Operational Services,Transport Related Expense,Tprt : Annual Hire Charge,3601,GO PLANT FLEET SERVICES LIMITED,A0091600,17/04/2023,OPS0333062,100,N,,N,N
Pendle Borough Council,Operational Services,Transport Related Expense,Tprt : Annual Hire Charge,3601,GO PLANT FLEET SERVICES LIMITED,A0091600,20/04/2023,OPS0333210,253.76,N,,N,N
Pendle Borough Council,Operational Services,Transport Related Expense,Tprt : Annual Hire Charge,3601,GO PLANT FLEET SERVICES LIMITED,A0091600,20/04/2023,OPS0333208,420,N,,N,N
Pendle Borough Council,Operational Services,Transport Related Expense,Tprt : Annual Hire Charge,3601,GO PLANT FLEET SERVICES LIMITED,A0091600,20/04/2023,OPS0333210,616.64,N,,N,N
Pendle Borough Council,Operational Services,Transport Related Expense,Tprt : Annual Hire Charge,3601,GO PLANT FLEET SERVICES LIMITED,A0091600,17/04/2023,OPS0333061,200,N,,N,N
Pendle Borough Council,Operational Services,Transport Related Expense,Tprt : Annual Hire Charge,3601,GO PLANT FLEET SERVICES LIMITED,A0091600,27/04/2023,OPS0333301,592.28,N,,N,N
Pendle Borough Council,Operational Services,Transport Related Expense,Tprt : Annual Hire Charge,3601,GO PLANT FLEET SERVICES LIMITED,A0091600,27/04/2023,OPS0333301,592.28,N,,N,N
Pendle Borough Council,Operational Services,Transport Related Expense,Tprt : Annual Hire Charge,3601,GO PLANT FLEET SERVICES LIMITED,A0091600,27/04/2023,OPS0333301,592.28,N,,N,N
Pendle Borough Council,Operational Services,Transport Related Expense,Tprt : Annual Hire Charge,3601,GO PLANT FLEET SERVICES LIMITED,A0091600,27/04/2023,OPS0333301,592.28,N,,N,N
Pendle Borough Council,Operational Services,Transport Related Expense,Tprt : Annual Hire Charge,3601,GO PLANT FLEET SERVICES LIMITED,A0091600,27/04/2023,OPS0333301,592.28,N,,N,N
Pendle Borough Council,Operational Services,Transport Related Expense,Tprt : Annual Hire Charge,3601,GO PLANT FLEET SERVICES LIMITED,A0091600,27/04/2023,OPS0333301,535.67,N,,N,N
Pendle Borough Council,Operational Services,Transport Related Expense,Tprt : Annual Hire Charge,3601,GO PLANT FLEET SERVICES LIMITED,A0091600,27/04/2023,OPS0333301,239.53,N,,N,N
Pendle Borough Council,Operational Services,Transport Related Expense,Tprt : Annual Hire Charge,3601,GO PLANT FLEET SERVICES LIMITED,A0091600,27/04/2023,OPS0333301,496.4,N,,N,N
Pendle Borough Council,Operational Services,Transport Related Expense,Tprt : Annual Hire Charge,3601,GO PLANT FLEET SERVICES LIMITED,A0091600,27/04/2023,OPS0333301,496.4,N,,N,N
Pendle Borough Council,Engineering & Special Projects,,Housing Impts/Cap Repairs,0104,RHEA PROJECTS LIMITED,A0091628,17/04/2023,HED0333007,1970,N,,N,N
Pendle Borough Council,Engineering & Special Projects,Supplies and Services,Other Expenses,4705,COLNE BID LIMITED,A0091663,06/04/2023,HED0332855,750,N,,N,N
Pendle Borough Council,Engineering & Special Projects,Premises Related Expense,Grounds : R & M : Day to Day : Routine,2101,A&G LANDSCAPES & GROUNDWORKS LIMITED,A0091675,27/04/2023,HED0333371,500,N,,N,N
Pendle Borough Council,Engineering & Special Projects,Premises Related Expense,Grounds : R & M : Day to Day : Routine,2101,A&G LANDSCAPES & GROUNDWORKS LIMITED,A0091675,27/04/2023,HED0333371,1394.88,N,,N,N
Pendle Borough Council,Engineering & Special Projects,Premises Related Expense,Grounds : R & M : Day to Day : Routine,2101,A&G LANDSCAPES & GROUNDWORKS LIMITED,A0091675,27/04/2023,HED0333365,150,N,,N,N
Pendle Borough Council,Parks & Recreation Services,Supplies and Services,Other Expenses,4705,A&G LANDSCAPES & GROUNDWORKS LIMITED,A0091675,17/04/2023,PCO0332987,950,N,,N,N
Pendle Borough Council,Parks & Recreation Services,Supplies and Services,Other Expenses,4705,A&G LANDSCAPES & GROUNDWORKS LIMITED,A0091675,17/04/2023,PCO0332987,1000,N,,N,N
Pendle Borough Council,Engineering & Special Projects,Capital Costs,Capital : Payments,CD14,A&G LANDSCAPES & GROUNDWORKS LIMITED,A0091675,27/04/2023,HED0333370,5000,N,,N,N
Pendle Borough Council,Engineering & Special Projects,Capital Costs,Capital : Payments,CD14,A&G LANDSCAPES & GROUNDWORKS LIMITED,A0091675,27/04/2023,HED0333370,17494.45,N,,N,N
Pendle Borough Council,Parks & Recreation Services,Agency Staff,Emp : Agency Wages,1004,THE BEST CONNECTION GROUP LIMITED,A0091729,17/04/2023,PCO0333021,60.96,N,,N,N
Pendle Borough Council,Parks & Recreation Services,Agency Staff,Emp : Agency Wages,1004,THE BEST CONNECTION GROUP LIMITED,A0091729,17/04/2023,PCO0333014,137.16,N,,N,N
Pendle Borough Council,Information Services,Supplies and Services,Other Expenses,4705,ESRI (UK) LIMITED,A0091766,27/04/2023,ITS0333332,680,N,,N,N
Pendle Borough Council,Engineering & Special Projects,Agency Staff,Emp : Agency Wages,1004,THE OYSTER PARTNERSHIP LIMITED,A0091781,17/04/2023,HED4006707,-1515.91,N,,N,N
Pendle Borough Council,Engineering & Special Projects,Agency Staff,Emp : Agency Wages,1004,THE OYSTER PARTNERSHIP LIMITED,A0091781,27/04/2023,HED0333251,1251.5,N,,N,N
Pendle Borough Council,Engineering & Special Projects,Agency Staff,Emp : Agency Wages,1004,THE OYSTER PARTNERSHIP LIMITED,A0091781,20/04/2023,HED0333110,1261.19,N,,N,N
Pendle Borough Council,Engineering & Special Projects,Agency Staff,Emp : Agency Wages,1004,THE OYSTER PARTNERSHIP LIMITED,A0091781,17/04/2023,HED0333003,1447.81,N,,N,N
Pendle Borough Council,Engineering & Special Projects,Agency Staff,Emp : Agency Wages,1004,THE OYSTER PARTNERSHIP LIMITED,A0091781,17/04/2023,HED0332766,1502.46,N,,N,N
Pendle Borough Council,Engineering & Special Projects,Agency Staff,Emp : Agency Wages,1004,THE OYSTER PARTNERSHIP LIMITED,A0091781,20/04/2023,HED0333146,4000,N,,N,N
Pendle Borough Council,Engineering & Special Projects,Supplies and Services,Consultants Fees,4401,G2 RECRUITMENT SOLUTIONS,A0091827,27/04/2023,HED0333349,5448.1,N,,N,N
Pendle Borough Council,Engineering & Special Projects,Supplies and Services,Consultants Fees,4401,G2 RECRUITMENT SOLUTIONS,A0091827,27/04/2023,HED0333350,6999.85,N,,N,N
Pendle Borough Council,Engineering & Special Projects,Supplies and Services,Consultants Fees,4401,G2 RECRUITMENT SOLUTIONS,A0091827,06/04/2023,HED0332765,7220.15,N,,N,N
Pendle Borough Council,Engineering & Special Projects,Capital Costs,Ren Grant : 1996 Act,CH22,DYNAMIC PLUMBING AND HEATING,A0091941,20/04/2023,HED0333212,10439,N,,N,N
Pendle Borough Council,Operational Services,,Stock : Purchases,PJ01,SMI GROUP UK,A0091999,20/04/2023,OPS0333186,59.64,N,,N,N
Pendle Borough Council,Operational Services,,Stock : Purchases,PJ01,SMI GROUP UK,A0091999,20/04/2023,OPS0333185,89.46,N,,N,N
Pendle Borough Council,Engineering & Special Projects,Capital Costs,Ren Grant : 1996 Act,CH22,OCEAN BATHROOMS TILES AND HEATING LTD,A0092441,20/04/2023,HED0333217,6648,N,,N,N
Pendle Borough Council,Financial Services,,Precept Parish & T Council,0303,BARROWFORD PARISH COUNCIL,A0094236,27/04/2023,AAS0333406,51550,N,,N,N
Pendle Borough Council,Revenues Services,Supplies and Services,DSS Collection Fee,4414,MARSTON (HOLDINGS) LIMITED,A0094273,17/04/2023,TRE0333088,16.29,N,,N,N
Pendle Borough Council,Revenues Services,Supplies and Services,DSS Collection Fee,4414,MARSTON (HOLDINGS) LIMITED,A0094273,20/04/2023,TRE0333219,75.03,N,,N,N
Pendle Borough Council,Engineering & Special Projects,Supplies and Services,Children`s holiday activities,4716,BODIES IN MOTION PENDLE LTD,A0095079,20/04/2023,HED0333165,310,N,,N,N
Pendle Borough Council,Parks & Recreation Services,Premises Related Expense,Grounds : R & M : Day to Day : Routine,2101,M W ENVIRONMENTAL,A0095862,27/04/2023,PCO0333307,290.83,N,,N,N
Pendle Borough Council,Planning & Building Control,,Neighbourhood Renewal Fund,9003,REDACT - PERSONAL DATA,A0095914,06/04/2023,PBC0332828,35.32,N,,N,N
Pendle Borough Council,Planning & Building Control,,Neighbourhood Renewal Fund,9003,REDACT - PERSONAL DATA,A0095987,06/04/2023,PBC0332829,70.64,N,,N,N
Pendle Borough Council,Engineering & Special Projects,Supplies and Services,Other Expenses,4705,COLNE YOUTH ACTION GROUP,A0096017,06/04/2023,HED0332788,457.5,N,,N,N
Pendle Borough Council,Engineering & Special Projects,Supplies and Services,Other Expenses,4705,COLNE YOUTH ACTION GROUP,A0096017,06/04/2023,HED0332813,4468.8,N,,N,N
Pendle Borough Council,Engineering & Special Projects,Supplies and Services,Children`s holiday activities,4716,COLNE YOUTH ACTION GROUP,A0096017,06/04/2023,HED0332764,4838.4,N,,N,N
Pendle Borough Council,Engineering & Special Projects,Capital Costs,Capital : Payments,CD14,BREWERS CONTRACTORS,A0096143,27/04/2023,HED0333368,101864.63,N,,N,N
Pendle Borough Council,Planning & Building Control,,Other Income : Non-VATable,9303,REDACT - PERSONAL DATA,A0096214,06/04/2023,PBC0332827,75.6,N,,N,N
Pendle Borough Council,Engineering & Special Projects,Supplies and Services,Children`s holiday activities,4716,COMMUNITY ARTS BY ZK,A0096410,27/04/2023,HED0333359,6720,N,,N,N
Pendle Borough Council,Engineering & Special Projects,Supplies and Services,Children`s holiday activities,4716,STAGE DOOR,A0096413,20/04/2023,HED0333164,864,N,,N,N
Pendle Borough Council,Engineering & Special Projects,Supplies and Services,Children`s holiday activities,4716,SPORTSCOOL LTD,A0096429,27/04/2023,HED0333357,3238.4,N,,N,N
Pendle Borough Council,Operational Services,Premises Related Expense,Bldgs : R & M : Day To Day,2001,REDACT - PERSONAL DATA,A0096440,27/04/2023,OPS0333237,9.47,N,,N,N
Pendle Borough Council,Parks & Recreation Services,Supplies and Services,Other Expenses,4705,ABC CLEANING SERVICES (NORTH WEST) LIMITED,A0096473,20/04/2023,PCO0333158,995,N,,N,N
Pendle Borough Council,Parks & Recreation Services,Indirect Employee Expenses,Training,1211,R HEWITT LTD,A0096478,20/04/2023,PCO0333170,2050,N,,N,N
Pendle Borough Council,Parks & Recreation Services,Premises Related Expense,Bldgs : R & M : Day To Day,2001,BANNISTER HALL LIMITED,A0096507,17/04/2023,PCO0333019,276,N,,N,N
Pendle Borough Council,Parks & Recreation Services,Supplies and Services,Other Expenses,4705,BANNISTER HALL LIMITED,A0096507,17/04/2023,PCO0333017,792.85,N,,N,N
Pendle Borough Council,Engineering & Special Projects,Capital Costs,Ren Grant : 1996 Act,CH22,TK ACCESS SOLUTIONS LIMITED,A0096509,17/04/2023,HED0333013,4019,N,,N,N
Pendle Borough Council,Operational Services,Supplies and Services,Other Expenses,4705,iHASCO LTD,A0096590,06/04/2023,OPS0332879,600,N,,N,N
Pendle Borough Council,Operational Services,Supplies and Services,Other Expenses,4705,iHASCO LTD,A0096590,06/04/2023,OPS0332879,2870,N,,N,N
Pendle Borough Council,Operational Services,Supplies and Services,Other Expenses,4705,IC2 DISTRIBUTION LIMITED,A0096611,27/04/2023,OPS0333321,490,N,,N,N
Pendle Borough Council,Engineering & Special Projects,Supplies and Services,Children`s holiday activities,4716,ABSOLUTE FUTBOL LTD,A0096761,06/04/2023,HED0332763,2880,N,,N,N
Pendle Borough Council,Financial Services,Premises Related Expense,Service Charge,2702,B1 YOUR SPACE LTD,A0096763,06/04/2023,AAS0332802,4750,N,,N,N
Pendle Borough Council,Engineering & Special Projects,Supplies and Services,Mayoral Expenses,4614,ST ANNE`S CHURCH,A0096768,06/04/2023,HED0332782,420,N,,N,N
Pendle Borough Council,Engineering & Special Projects,Supplies and Services,Other Expenses,4705,GROWTH LANCASHIRE LIMITED,A0096774,06/04/2023,HED0332794,644.91,N,,N,N
Pendle Borough Council,Planning & Building Control,Supplies and Services,Licences,4416,TAMESIDE METROPOLITAN BOROUGH,A0096870,06/04/2023,PBC0332826,1700,N,,N,N
Pendle Borough Council,Operational Services,Supplies and Services,EFM : Other Equipment,4003,UP TO SPEED TRAINNG,A0096883,06/04/2023,OPS0331386,224,N,,N,N
Pendle Borough Council,Property Services,Capital Costs,Capital : Payments,CD14,BUILDING TECHNOLOGY SYSTEMS LTD,A0096928,17/04/2023,EST0333042,2000,N,,N,N
Pendle Borough Council,Property Services,Capital Costs,Capital : Payments,CD14,BUILDING TECHNOLOGY SYSTEMS LTD,A0096928,17/04/2023,EST0333043,2000,N,,N,N
Pendle Borough Council,Housing Regeneration Services,Supplies and Services,Other Expenses,4705,GREAT PLACES HOUSING GROUP,A0096937,17/04/2023,HMR0333091,188.68,N,,N,N
Pendle Borough Council,Operational Services,Capital Costs,Capital : Payments,CD14,THE CDS GROUP,A0096940,06/04/2023,OPS0332831,350,N,,N,N
Pendle Borough Council,Operational Services,Capital Costs,Capital : Payments,CD14,THE CDS GROUP,A0096940,06/04/2023,OPS0332832,1400,N,,N,N
Pendle Borough Council,Engineering & Special Projects,Capital Costs,Capital : Payments,CD14,PENNY BENNETT LANDSCAPE ARCHITECTS,A0096959,27/04/2023,HED0333369,1500,N,,N,N
Pendle Borough Council,Operational Services,Supplies and Services,EFM Materials,4004,PORTABLE SPACE LTD,A0097011,20/04/2023,OPS0333179,2741,N,,N,N
Pendle Borough Council,Parks & Recreation Services,Transport Related Expense,Tprt : Repairs : General,3105,SIXIS Technology Ltd,A0097018,20/04/2023,PCO0333178,5531.5,N,,N,N
Pendle Borough Council,Financial Services,Supplies and Services,Other Expenses,4705,REDACT - PERSONAL DATA,A0097029,03/04/2023,AAS0333581,475,N,,N,N
Pendle Borough Council,Financial Services,Supplies and Services,Other Expenses,4705,BARLEY GREEN MANAGEMENT COMPANY,A0097141,06/04/2023,AAS0332800,23.89,N,,N,N
Pendle Borough Council,Financial Services,,Paid in the Year,PD03,BARLEY GREEN MANAGEMENT COMPANY,A0097141,06/04/2023,AAS0332800,600,N,,N,N
Pendle Borough Council,Financial Services,Supplies and Services,Grant Funding,4737,REDACT - PERSONAL DATA,A0097144,06/04/2023,AAS0332816,400,N,,N,N
Pendle Borough Council,Financial Services,Supplies and Services,Grant Funding,4737,REDACT - PERSONAL DATA,A0097145,06/04/2023,AAS0332817,400,N,,N,N
Pendle Borough Council,Financial Services,Supplies and Services,Grant Funding,4737,REDACT - PERSONAL DATA,A0097146,06/04/2023,AAS0332818,400,N,,N,N
Pendle Borough Council,Financial Services,Supplies and Services,Grant Funding,4737,REDACT - PERSONAL DATA,A0097147,06/04/2023,AAS0332819,400,N,,N,N
Pendle Borough Council,Financial Services,Supplies and Services,Grant Funding,4737,REDACT - PERSONAL DATA,A0097148,06/04/2023,AAS0332820,400,N,,N,N
Pendle Borough Council,Financial Services,Supplies and Services,Grant Funding,4737,REDACT - PERSONAL DATA,A0097149,06/04/2023,AAS0332821,400,N,,N,N
Pendle Borough Council,Engineering & Special Projects,Supplies and Services,Other Expenses,4705,WATERSIDE MILLENNIUM GREEN TRUST,A0097150,06/04/2023,HED0332926,4700,N,,N,N
Pendle Borough Council,Engineering & Special Projects,Supplies and Services,Other Expenses,4705,REDACT - PERSONAL DATA,A0097151,06/04/2023,HED0332822,400,N,,N,N
Pendle Borough Council,Engineering & Special Projects,Supplies and Services,Other Expenses,4705,THOMPSON REMOVALS,A0097153,06/04/2023,HED0332927,130,N,,N,N
Pendle Borough Council,Engineering & Special Projects,Supplies and Services,Other Expenses,4705,REDACT - PERSONAL DATA,A0097157,06/04/2023,HED0332982,600,N,,N,N
Pendle Borough Council,Engineering & Special Projects,Supplies and Services,Publicity & advertisement,4704,ANDY FORD PHOTOGRAPHER,A0097160,17/04/2023,HED0332997,2500,N,,N,N
Pendle Borough Council,Operational Services,Supplies and Services,Other Expenses,4705,DOGLAW LTD,A0097162,20/04/2023,OPS0333171,270,N,,N,N
Pendle Borough Council,Engineering & Special Projects,Supplies and Services,Children`s holiday activities,4716,BPN CATERING LTD,A0097163,20/04/2023,HED0333166,4980,N,,N,N
Pendle Borough Council,Engineering & Special Projects,Supplies and Services,Other Expenses,4705,URBAN DESIGN LONDON,A0097164,20/04/2023,HED0333215,750,N,,N,N
